Cogmind - Beta 17.1 @@@ ROGUE MODE // 2026.09.05 @ 21:06:45 Player: cptwinky Result: Escaped! Performance ------------- Evolutions (9) 4500 Regions Visited (27) 5400 Robots Destroyed (359) 1795 Value Destroyed (21341) 21341 Prototype IDs (53) 1060 Alien Tech Used (0) 0 Bonus (39744) 39744 TOTAL SCORE: 73840 Bonus ------- High Alert Combat Kills 2853 Follower Combat Kills 7415 Prayed to X0-1V1 5000 Major X0-1V1 Interference 13200 Entered Garrisons 1800 Used RIF Installer 5500 Entered DSFs 500 Hacked Protovariant 500 Win 3000 Friendly Fire -24 Cogmind --------- Core Integrity 1577/1630 Matter 282/900 Energy 1120/1140 System Corruption 3% Temperature Cool (13) Movement Walking (97) Location To Epsilon Eridani Parts ------- > --- POWER (2) -------- Hybrid Fission Core Particle Reactor (fused) > --- PROPULSION (7) --- Biometal Leg Biometal Leg Biometal Leg Biometal Leg Biometal Leg Enhanced Biometal Leg Centrium Leg > --- UTILITY (10) ----- Huge Storage Unit Experimental Optical Array Experimental Targeting Computer SHELL Armor Relay Coupler [NC] (13) Relay Coupler [NC] (26) Relay Coupler [Sentry] (91) Relay Coupler [Behemoth] (7) > --- WEAPON (6) ------- Enhanced Nova Cannon Coil Gun KE Penetrator Railgun Hypervelocity Multirail Advanced Remote Datajack > --- INVENTORY (25) --- Quantum Reactor Quantum Reactor Myomer Leg Centrium Leg Centrium Leg Experimental Heat Sink Experimental Heat Sink Matter Compressor (250) Advanced Transmission Jammer Relay Coupler [NC] (32) Relay Coupler [NC] (31) Relay Coupler [Sentry] (26) Relay Coupler [Sentry] (24) Compact HERF Cannon Compact HERF Cannon Perforator Neutron Missile Launcher Neutron Missile Launcher Advanced Remote Datajack Thunder Hammer Peak State ------------ > --- POWER ------------ Hybrid Fission Core Particle Reactor > --- PROPULSION ------- Biometal Leg Biometal Leg Biometal Leg Biometal Leg Biometal Leg Enhanced Biometal Leg Centrium Leg > --- UTILITY ---------- Experimental Heat Sink Huge Storage Unit Experimental Optical Array Experimental Targeting Computer SHELL Armor Relay Coupler [NC] Relay Coupler [NC] Relay Coupler [Sentry] > --- WEAPON ----------- Enhanced Nova Cannon Coil Gun KE Penetrator Railgun Hypervelocity Multirail Advanced Remote Datajack > --- INVENTORY -------- Quantum Reactor Quantum Reactor Myomer Leg Centrium Leg Centrium Leg Experimental Heat Sink Matter Compressor Advanced Transmission Jammer Relay Coupler [NC] Relay Coupler [NC] Relay Coupler [Sentry] Relay Coupler [Sentry] Relay Coupler [Behemoth] Relay Coupler [Behemoth] Compact HERF Cannon Compact HERF Cannon Perforator Neutron Missile Launcher Neutron Missile Launcher Advanced Remote Datajack Thunder Hammer [Rating: 192] Favorites ----------- Power Cooled Ion Engine Engine Cooled Ion Engine Power Core Hybrid Fission Core Reactor Cold Fusion Reactor Propulsion Carbon-fiber Leg Treads Improved Heavy Treads Leg Carbon-fiber Leg Hover Unit Cooled Aerolev Unit Utility Large Storage Unit Device X0-1V1's Piety Tracker Storage Large Storage Unit Processor Experimental Targeting Computer Hackware Relay Coupler [Sentry] Protection Improved Medium Armor Plating Weapon KE Penetrator Energy Gun Beam Rifle Energy Cannon Cooled Particle Cannon Ballistic Gun KE Penetrator Ballistic Cannon Perforator Launcher Mini Grenade Launcher Special Weapon Remote Datajack Impact Weapon Heavy Hammer Slashing Weapon Molecular Scythe Special Melee Weapon Improved Datajack Build | -11 -10 -10 -9 -9 -8 -8 -8 -8 -7 -7 -7 -7 -7 -7 -6 -6 -6 -6 -5 -5 -4 -4 -3 -3 -2 -2 -1 ------- Run | Yrd Mat Min Mat Sto Mat Gar Mat Gar Fac Gar Fac Gar Fac Gar Fac Gar Fac Gar Fac Gar Fac Gar Res DSF Res Tes Acc Slots Evolved 16 | . . . 2 . 2 . . . 2 . . . . . 2 . . . 2 . 2 . 2 . 2 . . Power 1 | . . . . . . . . . . . . . . . . . . . 1 . . . . . . . . Propulsion 6 | . . . 1 . . . . . 1 . . . . . 1 . . . 1 . 1 . . . 1 . . Utility 8 | . . . 1 . 1 . . . 1 . . . . . 1 . . . . . 1 . 2 . 1 . . Weapon 1 | . . . . . 1 . . . . . . . . . . . . . . . . . . . . . . Parts Attached 299 | 6 11 5 13 21 7 18 24 8 10 21 4 13 10 22 6 10 . 10 . 24 2 14 1 . 16 17 6 Power 24 | 1 1 1 1 2 . . 4 . 2 1 . . 1 2 . . . 1 . 3 . 3 . . . 1 . Engine 14 | 1 1 . 1 1 . . 3 . 2 1 . . 1 2 . . . 1 . . . . . . . . . Core 7 | . . 1 . . . . 1 . . . . . . . . . . . . 3 . 2 . . . . . Reactor 3 | . . . . 1 . . . . . . . . . . . . . . . . . 1 . . . 1 . Propulsion 74 | 2 3 2 5 4 1 6 5 . . 4 2 . 3 3 2 3 . 3 . 7 1 8 . . 5 3 2 Treads 10 | 2 3 . . . . . . . . 3 1 . . . . . . 1 . . . . . . . . . Leg 63 | . . 2 5 3 1 6 5 . . 1 1 . 3 3 2 3 . 2 . 7 1 8 . . 5 3 2 Wheel . | . . . . . . . . . . . . . . . . . . . . . . . . . . . . Hover 1 | . . . . 1 . . . . . . . . . . . . . . . . . . . . . . . Flight . | . . . . . . . . . . . . . . . . . . . . . . . . . . . . Utility 111 | 1 5 . 3 5 3 9 8 5 3 10 1 5 1 12 3 6 . 1 . 9 1 1 1 . 7 8 3 Device 38 | . 1 . 2 1 2 6 3 2 1 4 . 2 . 3 2 2 . . . 4 . . . . . 3 . Storage 5 | 1 1 . . . . . 1 . . . . . . . . . . . . 1 . . . . 1 . . Processor 9 | . 2 . . . . . . . . . . . . 1 . . . . . 1 . . . . 4 1 . Hackware 28 | . . . . . 1 . 2 . 2 4 . 2 . 6 1 3 . 1 . . 1 1 1 . . 1 2 Protection 31 | . 1 . 1 4 . 3 2 3 . 2 1 1 1 2 . 1 . . . 3 . . . . 2 3 1 Artifact . | . . . . . . . . . . . . . . . . . . . . . . . . . . . . Weapon 90 | 2 2 2 4 10 3 3 7 3 5 6 1 8 5 5 1 1 . 5 . 5 . 2 . . 4 5 1 Energy Gun 29 | 1 1 1 3 7 2 2 2 3 2 3 1 . . 1 . . . . . . . . . . . . . Energy Cannon 8 | . . . . . . . . . . . . 2 1 2 . . . . . . . . . . 1 1 1 Ballistic Gun 31 | 1 . . . 1 1 1 3 . . 3 . 4 2 2 1 1 . 3 . 4 . 2 . . 1 1 . Ballistic Cannon 1 | . . . . . . . . . . . . . . . . . . . . . . . . . . 1 . Launcher 10 | . 1 1 . 1 . . 1 . 1 . . 1 1 . . . . 1 . . . . . . 1 1 . Special Weapon 5 | . . . . . . . . . 1 . . 1 . . . . . 1 . . . . . . 1 1 . Impact Weapon 5 | . . . 1 1 . . . . 1 . . . 1 . . . . . . 1 . . . . . . . Slashing Weapon . | . . . . . . . . . . . . . . . . . . . . . . . . . . . . Piercing Weapon . | . . . . . . . . . . . . . . . . . . . . . . . . . . . . Special Melee Weapon 1 | . . . . . . . 1 . . . . . . . . . . . . . . . . . . . . Unidentified Prototypes 26 | . 1 . . 6 . . 2 . 4 . . . 1 . . . . . . 3 . . . . 4 4 1 Parts Lost 38 | . . . 3 5 1 8 . 3 2 5 . 1 2 3 . . . 2 . . . . . . . 1 2 Power 4 | . . . 1 . . 1 . . 1 . . . 1 . . . . . . . . . . . . . . Propulsion 8 | . . . . 1 . 2 . . . 2 . . . 1 . . . . . . . . . . . 1 1 Utility 17 | . . . 2 3 . 3 . 2 1 1 . 1 1 2 . . . 1 . . . . . . . . . Weapon 9 | . . . . 1 1 2 . 1 . 2 . . . . . . . 1 . . . . . . . . 1 Highest Loss Streak 3 | . . . 2 2 1 3 . 2 1 3 . 1 2 2 . . . 1 . . . . . . . 1 1 To Critical Strikes 1 | . . . . . . . . . . . . . . . . . . . . . . . . . . 1 . Average Backups 15 | 4 8 13 12 14 14 14 14 14 14 14 14 14 14 14 14 14 15 14 15 14 15 18 18 18 23 23 22 Power 1 | . . . 1 2 2 1 . . . . . . . 1 1 1 1 . . . 1 1 1 1 3 2 2 Propulsion 1 | 2 3 3 . . . 1 . 1 . . 2 3 2 1 . . . . . . . 1 2 3 4 5 3 Utility 5 | . 2 4 3 4 4 4 7 6 5 5 5 5 5 4 6 6 7 6 7 8 6 8 9 8 7 7 9 Weapon 5 | 1 3 5 5 5 7 6 5 5 5 5 4 4 4 5 5 5 5 5 6 4 5 4 5 5 5 6 6 Tool/Special . | . . . . . . . . . . . . . . . . . . . . . . . . . . . . Unused Backups 63 | . 3 3 1 1 2 1 5 2 . 6 1 3 4 2 . 1 . 3 . . . 2 . . 5 6 12 Power 11 | . . . . 1 . . 1 . . . . . 1 1 . . . 1 . . . 1 . . 2 1 2 Propulsion 11 | . . 2 1 . . . . . . . . . . . . . . . . . . . . . 3 2 3 Utility 28 | . 1 1 . . 1 . 2 1 . 3 1 2 2 1 . 1 . 2 . . . 1 . . . 3 6 Weapon 11 | . 2 . . . . 1 2 1 . 3 . 1 1 . . . . . . . . . . . . . . Tool/Special 2 | . . . . . 1 . . . . . . . . . . . . . . . . . . . . . 1 Average Slot Usage (%) 96 | . 99 100 98 99 99 98 99 99 98 92 83 83 92 97 99 99 100 99 88 98 97 98 90 95 94 94 86 Engine 5 | . 14 7 2 11 9 2 . 5 2 7 7 6 6 7 6 6 6 6 5 4 . . . . . . . Core 2 | . . 6 8 . . . . 3 4 . . . . . . . . . . 5 10 8 4 4 4 3 3 Reactor 1 | . . . . . . 6 8 . . . . . . . . . . . . . . 1 4 4 4 3 3 Treads 4 | . 27 25 . . . . . . . 6 15 14 6 . . . . . . . . . . . . . . Leg 22 | . . 2 33 32 27 26 27 26 30 16 . . 14 30 33 33 33 33 29 29 29 29 23 23 25 26 27 Device 10 | . . 14 17 10 10 20 17 11 9 16 . 6 6 5 3 5 6 4 . 4 12 12 11 14 10 11 3 Storage 7 | . 14 14 11 11 9 9 9 9 7 7 7 6 6 7 6 6 6 6 5 5 5 5 4 4 4 3 3 Processor 1 | . 6 . . . . . . . . . . . . . . . . . . . . . . . 4 8 7 Hackware 8 | . . . . . 7 . 3 . 6 6 23 15 14 13 22 20 20 17 17 15 12 12 16 19 14 12 11 Protection 6 | . 5 . 3 10 9 5 5 15 11 7 6 6 6 8 6 6 6 9 11 6 5 5 4 4 6 3 3 Energy Gun 8 | . 13 20 21 21 22 17 8 20 16 20 . 2 . 1 . . . . . . . . . . . . . Ballistic Gun 12 | . 13 7 . . 3 7 18 6 4 1 18 17 25 20 19 16 13 18 17 21 17 20 14 14 15 16 15 Peak Build Rating 192 | 6 22 25 29 20 31 44 50 47 56 71 68 84 85 73 71 72 70 74 59 102 114 127 139 140 170 186 192 Average Rating 67 | 5 9 23 24 15 25 40 45 40 45 54 65 75 71 58 65 68 70 67 59 82 110 118 132 139 161 169 186 On Entrance 68 | . 6 22 25 16 17 28 44 47 41 56 68 65 84 63 53 64 70 70 59 59 102 114 126 139 140 168 174 Avg Prop Armor Cover (%) 9 | . . . . . . . . . . 7 11 10 8 . . . . 6 . . . . . . . . . Naked Turns . | . . . . . . . . . . . . . . . . . . . . . . . . . . . . Heaviest Build 178 | 11 33 32 39 39 42 46 51 60 66 65 56 68 70 66 51 51 49 50 49 89 119 125 112 112 165 170 178 Greatest Support 202 | 40 40 40 30 30 35 40 51 51 66 150 150 75 76 76 85 85 85 85 85 113 133 158 158 158 202 202 200 Greatest Overweight (x) 1 | . . 1 1 1 1 1 1 1 . 1 . . . . . . . . . 1 . 1 . . . . . Average Overweight (x) . | . . . 1 1 1 1 . . . . . . . . . . . . . . . . . . . . . Largest Inventory Capacity 25 | 8 15 15 15 15 15 15 15 15 15 15 15 15 15 15 15 15 15 15 15 20 20 20 20 20 25 25 25 Average Capacity 16 | 7 9 15 15 15 15 15 15 15 15 15 15 15 15 15 15 15 15 15 15 15 17 20 20 20 24 25 25 Most Carried 25 | 7 13 15 15 15 15 15 15 15 15 15 15 15 15 15 15 15 15 15 15 15 17 20 20 19 25 25 25 Average Carried 15 | 4 8 14 14 14 14 14 14 14 14 14 14 14 13 14 14 14 15 14 15 14 15 18 18 18 23 24 23 Final Capacity 25 | 8 15 15 15 15 15 15 15 15 15 15 15 15 15 15 15 15 15 15 15 15 20 20 20 20 25 25 25 Final Carried 25 | 7 13 15 15 15 15 15 14 15 13 15 15 15 15 15 15 15 15 15 15 15 16 19 18 19 25 25 21 Class Distribution -------------------- 23% | Botlord-Tank 17% | Bothacker-Tank 12% | Mutant 8% | Commander-Tank 7% | Scavenger-Mutant 7% | Scavenger-Tank 7% | Tank 3% | Botlord-Gunner Dominant Class ---------------- Mutant | -10/Materials Mutant | -10/Mines Scavenger-Mutant | -9/Materials Scavenger-Mutant | -9/Storage Scavenger-Tank | -8/Materials Scavenger-Tank | -8/Garrison Scavenger-Tank | -8/Materials Tank | -8/Garrison Bothacker-Tank | -7/Factory Bothacker-Tank | -7/Garrison Bothacker-Tank | -7/Factory Bothacker-Tank | -7/Garrison Bothacker-Tank | -7/Factory Bothacker-Tank | -7/Garrison Botlord-Tank | -6/Factory Botlord-Tank | -6/Garrison Botlord-Tank | -6/Factory Botlord-Tank | -6/Garrison Botlord-Tank | -5/Factory Botlord-Tank | -5/Garrison Commander-Tank | -4/Factory Commander-Tank | -4/Garrison Commander-Tank | -3/Research Commander-Tank | -3/DSF Botlord-Tank | -2/Research Botlord-Tank | -2/Testing Botlord-Executioner | -1/Access Resources | -11 -10 -10 -9 -9 -8 -8 -8 -8 -7 -7 -7 -7 -7 -7 -6 -6 -6 -6 -5 -5 -4 -4 -3 -3 -2 -2 -1 ----------- Run | Yrd Mat Min Mat Sto Mat Gar Mat Gar Fac Gar Fac Gar Fac Gar Fac Gar Fac Gar Fac Gar Fac Gar Res DSF Res Tes Acc Matter Collected 16838 | 286 204 354 346 384 119 701 1426 533 210 1827 65 706 569 1517 . 225 . 1175 . 1359 139 931 . . 1042 1783 937 Remotely . | . . . . . . . . . . . . . . . . . . . . . . . . . . . . Salvage Created 16334 | 97 523 63 650 899 325 1004 1309 932 631 1612 23 669 437 851 . 225 . 393 . 1080 . 409 . . 738 2009 1455 Parts 800 | 9 40 6 32 56 13 43 69 53 27 57 4 27 27 57 . 11 . 19 . 37 . 17 . . 31 99 66 Haulers Intercepted 19 | . 2 . 1 4 1 . 6 . 2 . . . 1 . . . . . . . . . . . 1 1 . Recyclers Shooed 12 | 2 . . . . . . 4 . 2 . . . 1 . 1 . . . . . 1 . . . . . 1 Parts Field Recycled . | . . . . . . . . . . . . . . . . . . . . . . . . . . . . Retrieved Matter . | . . . . . . . . . . . . . . . . . . . . . . . . . . . . Parts Self-Destructed . | . . . . . . . . . . . . . . . . . . . . . . . . . . . . Prevented . | . . . . . . . . . . . . . . . . . . . . . . . . . . . . Parts Restored . | . . . . . . . . . . . . . . . . . . . . . . . . . . . . Kills | -11 -10 -10 -9 -9 -8 -8 -8 -8 -7 -7 -7 -7 -7 -7 -6 -6 -6 -6 -5 -5 -4 -4 -3 -3 -2 -2 -1 ------- Run | Yrd Mat Min Mat Sto Mat Gar Mat Gar Fac Gar Fac Gar Fac Gar Fac Gar Fac Gar Fac Gar Fac Gar Res DSF Res Tes Acc Combat Hostiles Destroyed 301 | . 13 4 15 14 5 26 24 31 12 34 . 16 8 24 . . . 7 . 15 . 10 . . 9 20 14 Melee 1 | . . . . . . . . . . . . . . . . . . . . . . . . . . . 1 Guns 210 | . 10 1 10 13 5 14 22 14 7 15 . 12 8 19 . . . 4 . 15 . 7 . . 8 18 8 Cannons 2 | . . . . . . . . . . . . 1 . . . . . . . . . . . . . . 1 AOE 70 | . 3 3 . 1 . 11 2 16 3 18 . 2 . 5 . . . 2 . . . 3 . . . 1 . Classes Destroyed 20 | 2 6 . 1 2 1 2 . 1 . 2 . . . . . . . 1 . . . 1 . . . 1 . Worker 13 | . 1 . . . . . 1 . . . . . . . . . . . . . . . . . 1 6 4 Builder 3 | . . . . 1 . . . . . . . . . . . . . . . . . . . . . 1 1 Tunneler 3 | 2 . 1 . . . . . . . . . . . . . . . . . . . . . . . . . Hauler 19 | . 2 . 1 4 1 . 6 . 2 . . . 1 . . . . . . . . . . . 1 1 . Recycler 7 | 1 . . . 1 . . . . 2 . . . . . . . . . . . . . . . . 2 1 Mechanic 1 | . 1 . . . . . . . . . . . . . . . . . . . . . . . . . . Operator 5 | . 1 . . 1 . . 1 . . . 1 . . . . . . . . . . . . . 1 . . Watcher 5 | . . . . . . . . . . . . . . . . . . 2 . 1 . . . . . . 2 Swarmer 66 | . 3 3 . . . . 5 11 7 13 . 4 . 7 . . . 3 . 7 . 2 . . . 1 . Cutter 10 | . . . . . . 3 . . . . . . . 4 . . . . . . . 3 . . . . . Grunt 97 | . 10 1 11 5 3 9 13 10 4 11 . 2 2 4 . . . 1 . 3 . 1 . . . 3 4 Brawler 4 | . . . . 1 . 1 . . . 1 . . . . . . . . . 1 . . . . . . . Duelist 13 | . . . . . . 2 . 2 . . . 4 2 1 . . . . . . . 1 . . . . 1 Researcher 1 | . . . . . . . . . . . . . . . . . . . . . . . . . . 1 . Sentry 42 | . . . 4 8 1 7 6 5 1 4 . 1 . 2 . . . . . 1 . 1 . . . . 1 Specialist 5 | . . . . . . . . . . 2 . . . 1 . . . . . . . . . . . 2 . Hunter 21 | . . . . . 1 4 . 1 . 2 . . 2 . . . . 1 . . . . . . 5 1 4 Programmer 39 | . . . . . . . . 2 . . . 4 2 5 . . . 2 . 2 . 1 . . 4 12 5 Behemoth 2 | . . . . . . . . . . 1 . 1 . . . . . . . . . . . . . . . Striker 1 | . . . . . . . . . . . . . . . . . . . . . . 1 . . . . . Butcher 1 | . . . . . . . . . . . . . . . . . . . . 1 . . . . . . . Guerrilla 1 | . . . . . . . . . . . . . . . . . . . . . . . . . . 1 . Best Kill Streak 15 | 1 5 3 9 4 2 7 6 15 4 5 1 5 4 5 . . . 3 . 3 . 4 . . 3 7 6 Combat Bots Only 15 | . 3 3 9 3 1 7 6 15 4 5 . 5 4 5 . . . 3 . 3 . 4 . . 2 3 3 Max Kills in Single Turn 7 | 1 3 3 1 2 1 2 2 7 3 3 1 2 1 2 . . . 3 . 2 . 2 . . 1 2 4 Gunslinging 1 | . . . . . . 1 . 1 . . . . . . . . . . . 1 . 1 . . . . 1 Exploded 7 | . 2 3 . 1 . 2 2 7 3 3 . 2 . 2 . . . 2 . . . 2 . . . 1 . Melee 1 | . . . . . . . . . . . . . . . . . . . . . . . . . . . 1 Uniques/NPCs Destroyed . | . . . . . . . . . . . . . . . . . . . . . . . . . . . . Combat | -11 -10 -10 -9 -9 -8 -8 -8 -8 -7 -7 -7 -7 -7 -7 -6 -6 -6 -6 -5 -5 -4 -4 -3 -3 -2 -2 -1 -------- Run | Yrd Mat Min Mat Sto Mat Gar Mat Gar Fac Gar Fac Gar Fac Gar Fac Gar Fac Gar Fac Gar Fac Gar Res DSF Res Tes Acc Hostile Shots Fired 1496 | . 51 13 78 74 35 93 57 63 65 212 9 71 48 156 24 . . 72 . 58 2 31 . 1 55 139 89 Missed 490 | . 14 3 18 22 13 22 20 16 26 66 5 15 18 63 15 . . 29 . 20 . 12 . . 19 45 29 Hits 1006 | . 37 10 60 52 22 71 37 47 39 146 4 56 30 93 9 . . 43 . 38 2 19 . 1 36 94 60 Melee 23 | . . . . 3 . 4 . 2 . . . 2 9 3 . . . . . . . . . . . . . Projectile 983 | . 37 10 60 49 22 67 37 45 39 146 4 54 21 90 9 . . 43 . 38 2 19 . 1 36 94 60 AOE 2 | . . . . . . . . . . . . . . . . . . . . 1 . 1 . . . . . Critical Strikes 37 | . . . . 5 2 4 1 1 . 1 . 1 4 2 . . . 2 . . . 2 . . 1 6 5 Part Disruptions 2 | . . . . . . . . . . . . . . . . . . . . 2 . . . . . . . Damage Taken 15340 | . 410 170 591 953 366 1201 533 713 395 1693 32 575 607 1124 68 . . 602 . 1037 75 425 . 34 673 1578 1485 Core 1234 | . 58 15 37 107 33 98 52 100 11 206 . 33 66 116 . . . 117 . 56 . 12 . . 31 33 53 Absorbed by Shields 1929 | . . . 9 . . 32 . 13 . 434 . . 54 165 . . . . . 49 . 384 . 34 151 604 . Redirected to Shielding 121 | . . . . . . . . 73 48 . . . . . . . . . . . . . . . . . . Ignored by Resistances 255 | . . . . . . . 26 34 65 53 4 73 . . . . . . . . . . . . . . . Regen/Repaired (Parts) 1238 | . . . . 82 . . 26 . 56 . . . . . . . . . . 110 . 75 . . 36 240 613 Core Remaining (%) 87 | 100 . 100 . 72 . . . 69 . . . . . 52 . . . 86 . 94 . 98 . 100 . 95 96 Volleys Fired 1134 | 11 42 6 37 58 15 58 72 49 33 180 4 78 39 70 11 27 . 41 . 64 17 36 . 2 32 80 72 Largest 5 | 2 2 2 2 2 3 3 3 3 3 3 3 5 5 3 2 1 . 3 . 4 4 4 . 1 4 4 5 Hottest 216 | 60 85 85 130 130 168 173 147 191 191 210 90 205 216 141 66 33 . 96 . 128 128 133 . 7 133 133 183 Shots Fired 2388 | 22 81 11 74 110 43 138 198 103 79 267 8 146 87 149 12 28 . 61 . 185 32 100 . 2 100 249 103 Gun 2051 | 22 79 10 74 109 43 129 194 93 72 239 6 98 69 128 6 7 . 36 . 169 20 88 . . 91 229 40 Cannon 110 | . . . . . . . . . . . . 30 8 1 . 21 . 1 . . . . . . 4 12 33 Launcher 67 | . 2 1 . 1 . 9 4 10 2 22 . 1 . 6 . . . 1 . . . 3 . . . 4 1 Special 160 | . . . . . . . . . 5 6 2 17 10 14 6 . . 23 . 16 12 9 . 2 5 4 29 Kinetic 1199 | 11 40 5 . . 10 17 129 17 20 . 6 65 69 124 6 7 . 36 . 169 20 88 . . 91 229 40 Thermal 938 | 11 39 5 74 109 33 112 65 76 50 239 . 63 8 5 . 21 . 1 . . . . . . . 8 19 Explosive 67 | . 2 1 . 1 . 9 4 10 2 22 . 1 . 6 . . . 1 . . . 3 . . . 4 1 Electromagnetic 24 | . . . . . . . . . 2 . . . . . . . . . . . . . . . 4 4 14 Robot Hit Streak 49 | 8 10 12 14 20 12 49 33 26 31 33 10 22 12 23 17 33 . 44 . 34 14 15 . 3 13 22 26 Robot Miss Streak 4 | 2 3 1 3 1 1 1 2 1 2 3 2 3 3 4 . . . 2 . 2 1 2 . . 3 4 2 Penetration Max 2 | . . . . . . . . . . . . . 1 1 . . . . . 2 . 1 . . 1 1 2 Secondary Targets 35 | . 2 . 2 1 1 5 2 3 1 . . 2 2 2 . . . . . 2 . 2 . . 4 2 2 Max Gunslinging Chain 1 | . 1 . 1 1 1 1 1 1 1 . . 1 1 1 . . . . . 1 . 1 . . 1 1 1 Shots Hit Robots 1638 | 17 54 8 62 87 37 106 157 57 57 180 5 98 50 90 6 16 . 40 . 141 11 45 . 2 71 174 67 Core Hits 696 | 4 29 6 20 37 15 53 59 45 25 105 2 23 19 34 . 9 . 12 . 57 . 28 . . 20 67 27 Critical Kills 20 | . . . . . . . . . 1 . . . . 2 . . . 1 . 2 . 2 . . 2 3 7 Critical Parts Destroyed 30 | . . . 1 . . 1 . . . . . . 1 4 . . . . . 6 . 1 . . 3 6 7 Critical Strikes 95 | . 1 . 6 4 . 8 5 3 3 16 . . 1 7 . . . 1 . 8 . 3 . . 5 10 14 Burn 44 | . 1 . 5 4 . 7 5 3 2 16 . . . 1 . . . . . . . . . . . . . Meltdown 1 | . . . . . . . . . 1 . . . . . . . . . . . . . . . . . . Destroy 47 | . . . . . . 1 . . . . . . 1 6 . . . 1 . 8 . 3 . . 5 9 13 Corrupt 1 | . . . . . . . . . . . . . . . . . . . . . . . . . . 1 . Smash 2 | . . . 1 . . . . . . . . . . . . . . . . . . . . . . . 1 Melee Attacks 98 | . . . 7 6 1 15 14 . 4 5 . 7 5 9 . . . 2 . 2 . . . . 3 4 14 Impact 68 | . . . 7 6 1 15 7 . 1 . . . 5 2 . . . 2 . 1 . . . . 3 4 14 Slashing . | . . . . . . . . . . . . . . . . . . . . . . . . . . . . Piercing . | . . . . . . . . . . . . . . . . . . . . . . . . . . . . Sneak Attacks 23 | . . . . . . . 7 . 3 . . 5 . 4 . . . . . 2 . . . . . . 2 Combat Hostiles . | . . . . . . . . . . . . . . . . . . . . . . . . . . . . Follow-up Attacks . | . . . . . . . . . . . . . . . . . . . . . . . . . . . . Damage Inflicted 41067 | 201 1027 297 1095 1650 538 2513 3015 2276 1295 5771 70 2133 1119 2466 1 401 . 682 . 3155 17 1944 . . 2021 5365 2015 Guns 31005 | 194 681 105 941 1375 538 1603 2590 1108 917 3647 70 1516 1104 1909 . 22 . 450 . 3083 . 1687 . . 1847 4716 902 Cannons 1721 | . . . . 86 . . . . 89 . . 439 . . . 379 . . . . . . . . 134 126 468 Explosions 7122 | . 334 171 . 153 . 906 328 1167 266 2124 . 178 . 532 . . . 196 . . . 257 . . 14 417 79 Melee 696 | . . . 134 . . . . . . . . . . . . . . 36 . 72 . . . . . . 454 Ramming 523 | 7 12 21 20 36 . 4 97 1 23 . . . 15 25 1 . . . . . 17 . . . 26 106 112 Kinetic 19587 | 98 318 61 . 86 127 198 1624 112 186 . 70 1052 1104 1844 . 22 . 450 . 3083 . 1687 . . 1847 4716 902 Thermal 12452 | 96 363 44 941 1375 411 1405 966 996 816 3647 . 903 . 65 . 379 . . . . . . . . . . 45 Explosive 7067 | . 334 171 . 153 . 906 328 1167 225 2124 . 178 . 532 . . . 196 . . . 257 . . . 417 79 Electromagnetic 742 | . . . . . . . . . 45 . . . . . . . . . . . . . . . 148 126 423 Impact 696 | . . . 134 . . . . . . . . . . . . . . 36 . 72 . . . . . . 454 Slashing . | . . . . . . . . . . . . . . . . . . . . . . . . . . . . Piercing . | . . . . . . . . . . . . . . . . . . . . . . . . . . . . Highest Corruption 45 | . . . . 2 18 18 18 6 . 19 . . . 45 . . . . . 20 . . . . 3 22 3 Average Corruption 12 | . . . . 2 18 18 13 6 . 9 . . . 24 . . . . . 15 . . . . 1 8 1 Corruption Purged 19 | . . . . . . . 12 . . . . . . . . . . . . . . . . . . 7 . Corruption Blocked . | . . . . . . . . . . . . . . . . . . . . . . . . . . . . Effects 400 | . . . . 10 19 83 70 40 . 15 . . . 72 . . . . . 43 . . . . 10 33 5 Message Errors 89 | . . . . 4 4 21 20 9 . 5 . . . 14 . . . . . 6 . . . . 1 4 1 Matter Fused 75 | . . . . 1 3 18 10 12 . 1 . . . 13 . . . . . 8 . . . . 3 5 1 Heat Flow Errors 50 | . . . . 1 4 6 9 4 . . . . . 16 . . . . . 6 . . . . . 3 1 Energy Discharges 42 | . . . . 2 2 7 7 4 . 1 . . . 6 . . . . . 7 . . . . 2 3 1 Parts Rejected 7 | . . . . . . 1 2 1 . . . . . 1 . . . . . 1 . . . . . 1 . Parts Fused 7 | . . . . . . 3 . . . . . . . 1 . . . . . . . . . . . 2 1 Data Loss (minor) 43 | . . . . . 3 10 5 3 . 5 . . . 7 . . . . . 3 . . . . 2 5 . Data Loss (major) 22 | . . . . 1 . 5 1 1 . 2 . . . 5 . . . . . 2 . . . . 1 4 . Misfires 20 | . . . . 1 . 5 4 4 . . . . . 2 . . . . . 2 . . . . . 2 . Alerts 8 | . . . . . . 2 1 1 . 1 . . . 1 . . . . . 2 . . . . . . . Misdirections 9 | . . . . . 1 1 3 . . . . . . 3 . . . . . . . . . . . 1 . Weapon Failures 28 | . . . . . 2 4 8 1 . . . . . 3 . . . . . 6 . . . . 1 3 . Overload Shots 3 | . . . . . . . . . . . . 1 1 1 . . . . . . . . . . . . . Overflow Damage 594 | . 5 30 28 6 . 30 . 16 3 86 . 33 . 32 . 25 . 3 . 22 . . . . 9 64 202 Projectiles 41 | . . . . . . . . . . . . . . . . 25 . . . . . . . . 9 7 . Explosions 249 | . 5 30 . 6 . 30 . 16 3 86 . 33 . 32 . . . 2 . . . . . . . 6 . Melee 304 | . . . 28 . . . . . . . . . . . . . . 1 . 22 . . . . . 51 202 Knockbacks 7 | . . . . . . . . . . . . . . . 1 . . . . . . . . . . . 6 Impact 6 | . . . . . . . . . . . . . . . 1 . . . . . . . . . . . 5 Kinetic . | . . . . . . . . . . . . . . . . . . . . . . . . . . . . Secondary 1 | . . . . . . . . . . . . . . . . . . . . . . . . . . . 1 Self-Inflicted Damage 546 | . . 49 . 62 . 108 28 72 14 128 . . . 36 . . . . . . . . . . . . 49 Shots 15 | . . 1 . 1 . 2 1 3 1 4 . . . 1 . . . . . . . . . . . . 1 Rammed 9 | 2 3 4 . . . . . . . . . . . . . . . . . . . . . . . . . Targets Rammed 62 | 2 3 6 6 5 . 1 19 1 3 . . . 3 4 1 . . . . . 1 . . . 1 3 3 Kicked 52 | . . 1 6 5 . 1 19 1 3 . . . 3 4 1 . . . . . 1 . . . 1 3 3 Crushed 1 | . . 1 . . . . . . . . . . . . . . . . . . . . . . . . . Highest Temperature 535 | . 195 174 313 357 229 241 271 271 126 351 38 280 84 334 . . . 4 . 535 . 3 . . . 253 351 Average Temperature 82 | . 50 87 112 86 74 60 56 89 56 101 23 60 33 85 . . . 2 . 120 . 3 . . . 94 100 Received Heat Transfer 3114 | . 177 63 260 321 162 391 225 166 147 309 12 117 96 158 18 . . 102 . 99 12 18 . . . 117 144 Effects 11 | . . . 1 2 . . . 2 . 1 . 1 . . . . . . . 4 . . . . . . . Shutdowns 1 | . . . . . . . . . . . . . . . . . . . . 1 . . . . . . . Energy Bleed 3 | . . . 1 . . . . . . 1 . 1 . . . . . . . . . . . . . . . Interference 7 | . . . . 2 . . . 2 . . . . . . . . . . . 3 . . . . . . . Siege Activations 1 | . . . . . . . . . . . . 1 . . . . . . . . . . . . . . . Total Turns 19 | . . . . . . . . . . . . 19 . . . . . . . . . . . . . . . Longest Duration 19 | . . . . . . . . . . . . 19 . . . . . . . . . . . . . . . Martial Activations . | . . . . . . . . . . . . . . . . . . . . . . . . . . . . Shielding Activations . | . . . . . . . . . . . . . . . . . . . . . . . . . . . . Robots Disrupted . | . . . . . . . . . . . . . . . . . . . . . . . . . . . . Combat Hostiles . | . . . . . . . . . . . . . . . . . . . . . . . . . . . . Robots Corrupted 12 | . . . 2 . . . . . . . . . . . . . . 1 . 1 . . . . 1 1 6 Combat Hostiles 9 | . . . 2 . . . . . . . . . . . . . . 1 . . . . . . 1 1 4 Parts Fried 21 | . . . 5 . . . . . . . . . . . . . . . . . . . . . . 4 12 Impact Corruptions 15 | . . . 2 . . . . . . . . . . . . . . 1 . 2 . . . . . 1 9 Robots Melted 6 | . . . 3 . . 1 . 1 1 . . . . . . . . . . . . . . . . . . Combat Hostiles 6 | . . . 3 . . 1 . 1 1 . . . . . . . . . . . . . . . . . . Parts Melted 71 | . . . 10 5 2 15 2 6 5 17 . 1 . 5 . . . . . . . 1 . . . 1 1 Heat Transferred 28403 | 225 905 111 2553 3552 1036 3885 2331 2052 1667 8097 . 1184 . 250 . 518 . . . . . . . . . . 37 Parts Sabotaged . | . . . . . . . . . . . . . . . . . . . . . . . . . . . . Parts Stolen . | . . . . . . . . . . . . . . . . . . . . . . . . . . . . Parts Stripped . | . . . . . . . . . . . . . . . . . . . . . . . . . . . . Power Chain Reactions 1 | . . . . . . . . . 1 . . . . . . . . . . . . . . . . . . Alert | -11 -10 -10 -9 -9 -8 -8 -8 -8 -7 -7 -7 -7 -7 -7 -6 -6 -6 -6 -5 -5 -4 -4 -3 -3 -2 -2 -1 ------- Run | Yrd Mat Min Mat Sto Mat Gar Mat Gar Fac Gar Fac Gar Fac Gar Fac Gar Fac Gar Fac Gar Fac Gar Res DSF Res Tes Acc Maximum Alert Level 5 | . 1 . . 1 1 3 2 3 2 4 3 4 3 3 2 2 1 4 2 5 3 5 3 3 2 1 . Low Security (%) 36 | 100 98 100 100 65 71 8 17 4 78 1 . . . . 16 66 30 9 . . . . . . 69 90 100 Level 1 14 | . 1 . . 35 28 14 76 21 9 8 . . . . 46 32 69 5 . . . . . . 28 9 . Level 2 14 | . . . . . . 31 6 2 12 13 90 18 32 41 37 1 . 24 100 9 81 11 . . 2 . . Level 3 25 | . . . . . . 45 . 72 . 61 9 62 67 58 . . . 38 . 14 18 26 100 100 . . . Level 4 7 | . . . . . . . . . . 15 . 19 . . . . . 22 . 36 . 49 . . . . . Level 5 2 | . . . . . . . . . . . . . . . . . . . . 39 . 12 . . . . . High Security . | . . . . . . . . . . . . . . . . . . . . . . . . . . . . Max Security . | . . . . . . . . . . . . . . . . . . . . . . . . . . . . Peak Influence 1906 | 5 208 101 150 303 394 1063 532 1048 552 1357 711 1273 910 923 484 430 236 1155 606 1906 1000 1742 979 729 409 224 142 Initial 1000 | . . 25 . 38 124 135 518 161 550 115 711 441 667 426 484 5 225 33 606 403 1000 435 979 729 409 3 127 Average 510 | . 71 15 63 167 193 654 309 752 198 852 657 868 729 712 331 212 173 771 591 1340 684 1221 975 729 152 102 80 Influence Increases 17421 | 15 416 187 481 961 511 1048 817 927 454 1492 201 1002 876 1062 109 425 23 1342 . 1633 242 1367 3 . 706 667 454 Destroy 0b10 Robot/C 8175 | . 260 120 300 500 120 660 500 620 260 780 100 460 345 600 60 . . 465 . 675 90 480 . . 255 315 210 Destroy 0b10 Robot/NC 359 | 15 25 5 5 55 5 . 40 . 20 20 5 . 16 . . 16 . 12 . 20 . . . . 24 44 32 Destroy Leader 1132 | . 54 30 72 172 32 30 142 40 44 30 30 30 76 24 16 . . 48 . 56 16 56 . . 42 48 44 Allied During Kill 2747 | . . 11 10 125 5 11 5 . 4 47 66 70 116 130 8 12 . 506 . 740 106 536 . . 230 3 6 Trap Triggered on 0b10 30 | . . . 20 10 . . . . . . . . . . . . . . . . . . . . . . . Successful Hack 319 | . 12 . 13 28 8 . 25 14 28 30 . 28 19 6 13 . 23 9 . 8 . . 3 . 20 11 21 Disable Machine 525 | . 15 . . 60 . . 15 15 30 . . 66 60 48 12 . . . . . 24 24 . . 36 84 36 Anti-Garrison Action 2136 | . . . . . . 250 . 200 . 350 . 239 . 227 . 377 . 228 . 76 . 189 . . . . . Destroy Structure 941 | . 5 6 1 11 1 82 30 38 8 145 . 79 22 15 . 20 . 62 . 22 6 70 . . 99 138 81 Partial Spotted 45 | . . . . . . . 30 . 15 . . . . . . . . . . . . . . . . . . Lose Combat Pursuer 510 | . 45 15 60 . 60 15 30 . 45 90 . 30 . 12 . . . 12 . 36 . 12 . . . 24 24 Miscellaneous 502 | . . . . . 280 . . . . . . . 222 . . . . . . . . . . . . . . Influence Decreases 17305 | 15 351 252 390 758 596 194 1632 127 1337 300 928 359 1540 748 1024 3 405 235 579 303 1526 247 773 243 1429 461 550 Entered New Map 7032 | . . 40 . 53 170 74 545 87 498 50 646 189 606 183 439 3 205 15 549 173 906 187 763 243 320 3 85 Time Decay 4744 | 15 351 192 266 555 206 . 562 . 214 . 262 . 474 . 270 . 50 . 30 . 120 . 10 . 434 388 345 Lost Part 370 | . . . 20 50 10 80 . 30 20 50 . 10 20 30 . . . 20 . . . . . . . 10 20 Lost Ally 1950 | . . 20 20 100 60 40 . 10 30 200 20 160 140 160 40 . . 200 . 130 . 60 . . 400 60 100 Purge Threat 3209 | . . . 84 . 150 . 525 . 575 . . . 300 375 275 . 150 . . . 500 . . . 275 . . Squads Dispatched 48 | . 3 . 1 2 2 . 3 . 6 . 2 . 9 . 4 . 2 . . . 2 . . . 5 4 3 Investigation 14 | . 2 . 1 . 1 . . . 3 . 1 . 3 . 1 . 2 . . . . . . . . . . Extermination 11 | . . . . . . . . . . . 1 . 2 . 2 . . . . . . . . . 2 2 2 Reinforcement 16 | . 1 . . 2 . . 3 . 2 . . . 1 . . . . . . . 2 . . . 3 1 1 Assault 3 | . . . . . . . . . . . . . 2 . . . . . . . . . . . . 1 . Garrison 4 | . . . . . 1 . . . 1 . . . 1 . 1 . . . . . . . . . . . . Intercept . | . . . . . . . . . . . . . . . . . . . . . . . . . . . . Searches Triggered . | . . . . . . . . . . . . . . . . . . . . . . . . . . . . Construction Impeded 1 | . . . . . . . . . . . . . . . . . . . . . . . . . 1 . . Haulers Reinforced 3 | . . . . . . . . . 1 . . . . . . . . . . . . . . . 1 . 1 Active Scanning Responses . | . . . . . . . . . . . . . . . . . . . . . . . . . . . . Cargo Convoy Interrupts . | . . . . . . . . . . . . . . . . . . . . . . . . . . . . Alert ID Control Effect 29 | . . . . . . . . . . . . . . . . . . . . . . 4 . . 19 . 6 Stealth | -11 -10 -10 -9 -9 -8 -8 -8 -8 -7 -7 -7 -7 -7 -7 -6 -6 -6 -6 -5 -5 -4 -4 -3 -3 -2 -2 -1 --------- Run | Yrd Mat Min Mat Sto Mat Gar Mat Gar Fac Gar Fac Gar Fac Gar Fac Gar Fac Gar Fac Gar Fac Gar Res DSF Res Tes Acc Distress Signals 21 | . 1 . 3 3 2 . 4 . . . . . 3 . . . . . . . . . . . 2 . 3 Communications Jammed 7 | . . . . . . . . . . . . . . . . . . . . . 2 . . . 2 3 . Distress Signals 5 | . . . . . . . . . . . . . . . . . . . . . 1 . . . 2 2 . Times Spotted 631 | . 22 7 20 28 11 34 47 30 18 50 10 28 31 44 9 . . 28 2 51 10 33 . 1 31 37 49 Peak Tracking Total 14 | . 5 3 8 5 5 4 6 13 6 6 4 5 8 10 3 . . 10 2 14 4 4 . 1 5 6 7 Tactical Retreats 23 | . 2 1 2 . 2 1 1 . 3 2 . 2 . 1 . . . 1 . 1 . 1 . . . 1 2 Traps | -11 -10 -10 -9 -9 -8 -8 -8 -8 -7 -7 -7 -7 -7 -7 -6 -6 -6 -6 -5 -5 -4 -4 -3 -3 -2 -2 -1 ------- Run | Yrd Mat Min Mat Sto Mat Gar Mat Gar Fac Gar Fac Gar Fac Gar Fac Gar Fac Gar Fac Gar Fac Gar Res DSF Res Tes Acc Traps Triggered 50 | . 2 . . 1 . 11 . 3 . 7 . 2 . 3 1 2 . 2 . 1 . 1 . 6 1 6 1 Indirectly . | . . . . . . . . . . . . . . . . . . . . . . . . . . . . Trap Hack Attempts 36 | . . . . . . . . 4 . . . . . 32 . . . . . . . . . . . . . Triggered . | . . . . . . . . . . . . . . . . . . . . . . . . . . . . Disarmed 9 | . . . . . . . . 1 . . . . 6 2 . . . . . . . . . . . . . Reprogrammed 1 | . . . . . . . . . . . . . . 1 . . . . . . . . . . . . . Reused 3 | . . . 2 1 . . . . . . . . . . . . . . . . . . . . . . . Traps Extracted . | . . . . . . . . . . . . . . . . . . . . . . . . . . . . Installed 4 | . . . 2 2 . . . . . . . . . . . . . . . . . . . . . . . Triggered 3 | . . . 2 1 . . . . . . . . . . . . . . . . . . . . . . . Most Traps Carried 3 | . . 3 3 1 . . . . . . . . . . . . . . . . . . . . . . . Machines | -11 -10 -10 -9 -9 -8 -8 -8 -8 -7 -7 -7 -7 -7 -7 -6 -6 -6 -6 -5 -5 -4 -4 -3 -3 -2 -2 -1 ---------- Run | Yrd Mat Min Mat Sto Mat Gar Mat Gar Fac Gar Fac Gar Fac Gar Fac Gar Fac Gar Fac Gar Fac Gar Res DSF Res Tes Acc Machines Disabled 79 | . 1 . . 4 . 3 1 4 2 3 . 9 5 8 1 4 . 8 . 2 2 7 . . 3 9 3 Max in Single Turn 2 | . 1 . . 1 . 1 1 1 1 1 . 1 1 1 1 1 . 1 . 1 1 1 . . 1 2 1 Garrison Access 5 | . . . . 1 . . . . . . . . 1 . . . . . . . . . . . . 1 2 Garrison Relay 32 | . . . . . . 3 . 3 . 3 . 4 . 4 . 4 . 5 . 3 . 3 . . . . . Phase Generator 5 | . . . . . . . . . . 1 . . . 1 . . . 1 . 1 . 1 . . . . . Energy Cycler 1 | . . . . . . . . . . . . . . . . . . . . . . . . . . . 1 Machines Repaired . | . . . . . . . . . . . . . . . . . . . . . . . . . . . . Machines Dismantled . | . . . . . . . . . . . . . . . . . . . . . . . . . . . . Machines Sabotaged . | . . . . . . . . . . . . . . . . . . . . . . . . . . . . Overloaded Fab Kills . | . . . . . . . . . . . . . . . . . . . . . . . . . . . . Hacking | -11 -10 -10 -9 -9 -8 -8 -8 -8 -7 -7 -7 -7 -7 -7 -6 -6 -6 -6 -5 -5 -4 -4 -3 -3 -2 -2 -1 --------- Run | Yrd Mat Min Mat Sto Mat Gar Mat Gar Fac Gar Fac Gar Fac Gar Fac Gar Fac Gar Fac Gar Fac Gar Res DSF Res Tes Acc Machines Accessed 99 | . 5 . 6 12 2 1 9 3 5 2 4 2 8 3 3 1 2 3 1 2 1 1 1 . 8 8 6 Terminals 63 | . 3 . 4 9 1 1 7 3 2 2 1 2 3 3 1 1 1 3 . 2 . 1 1 . 5 4 3 Fabricators 5 | . . . . . . . . . . . 1 . 2 . . . . . . . . . . . 1 1 . Repair Stations 8 | . 1 . . 2 . . . . 1 . 1 . . . . . . . . . . . . . 1 1 1 Recycling Units 1 | . 1 . . . . . . . . . . . . . . . . . . . . . . . . . . Scanalyzers 9 | . . . 2 . . . 1 . 1 . . . 2 . 1 . . . . . . . . . 1 1 . Garrison Access 13 | . . . . 1 1 . 1 . 1 . 1 . 1 . 1 . 1 . 1 . 1 . . . . 1 2 Total Hacks 212 | . 11 . 14 20 8 1 22 5 14 3 11 3 22 4 10 3 5 4 2 3 2 1 1 . 15 17 11 Successful 93 | . 3 . 7 13 5 . 7 1 7 3 3 2 10 1 5 1 4 2 1 1 1 . 1 . 3 7 5 Failed 116 | . 8 . 7 7 3 1 14 4 6 . 8 1 12 3 5 2 1 2 1 2 1 1 . . 12 9 6 Catastrophic 28 | . 1 . 1 . 2 . 6 3 2 . 1 . 3 2 . . . 1 1 . 1 . . . 3 1 . Database Lockouts 3 | . . . . . . . 1 . 1 . . . . . . . . . . . . . . . . 1 . Manual 77 | . 6 . 7 6 5 . 16 . 6 1 9 . 9 1 3 . 1 . 1 . 1 . . . 2 1 2 Terminals 134 | . 7 . 8 15 5 1 18 5 8 3 1 3 10 4 5 3 3 4 . 3 . 1 1 . 10 10 6 Fabricators 8 | . . . . . . . . . . . 3 . 3 . . . . . . . . . . . 1 1 . Repair Stations 13 | . 2 . . 4 . . . . 1 . 2 . . . . . . . . . . . . . 2 1 1 Recycling Units 2 | . 2 . . . . . . . . . . . . . . . . . . . . . . . . . . Scanalyzers 25 | . . . 6 . . . 2 . 3 . . . 6 . 3 . . . . . . . . . 2 3 . Garrison Access 30 | . . . . 1 3 . 2 . 2 . 5 . 3 . 2 . 2 . 2 . 2 . . . . 2 4 Terminal Hacks 44 | . 2 . 4 7 2 . 3 1 3 2 . 2 4 1 . 1 2 2 . 1 . . 1 . 3 2 1 Part Schematic 1 | . . . . . . . . . . . . . . . . . 1 . . . . . . . . . . Robot Analysis 4 | . 2 . 1 . . . 1 . . . . . . . . . . . . . . . . . . . . Prototype ID Bank 4 | . . . . 3 . . . . . . . . . . . . . . . . . . . . 1 . . Open Door 5 | . . . . 2 . . . . . . . . . 1 . . . 1 . . . . . . . 1 . Open DSF 1 | . . . . . . . . . . . . . . . . . . . . . . . 1 . . . . Branch Access Points 3 | . . . 1 . . . . . . . . . . . . . . . . . . . . . 1 . 1 Emergency Access Points 5 | . . . . . . . . . . 1 . 1 . . . 1 . 1 . 1 . . . . . . . Scanalyzer Index 1 | . . . . . . . 1 . . . . . . . . . . . . . . . . . . . . Garrison Index 1 | . . . . . . . . . 1 . . . . . . . . . . . . . . . . . . Unreport Threat 8 | . . . 1 . 1 . 1 . 2 . . . 2 . . . 1 . . . . . . . . . . Locate Traps 3 | . . . . 1 1 . . . . . . . 1 . . . . . . . . . . . . . . Disarm Traps 1 | . . . . . . . . . . . . . 1 . . . . . . . . . . . . . . Zone Layout 3 | . . . 1 1 . . . . . . . . . . . . . . . . . . . . 1 . . Patrol Navigation 3 | . . . . . . . . 1 . 1 . 1 . . . . . . . . . . . . . . . Protovariant Controls 1 | . . . . . . . . . . . . . . . . . . . . . . . . . . 1 . Fabricator Hacks 1 | . . . . . . . . . . . . . 1 . . . . . . . . . . . . . . Build 1 | . . . . . . . . . . . . . 1 . . . . . . . . . . . . . . Repair Station Hacks 4 | . 1 . . 2 . . . . . . 1 . . . . . . . . . . . . . . . . Scan Component 3 | . 1 . . 1 . . . . . . 1 . . . . . . . . . . . . . . . . Repair 1 | . . . . 1 . . . . . . . . . . . . . . . . . . . . . . . Recycling Unit Hacks . | . . . . . . . . . . . . . . . . . . . . . . . . . . . . Scanalyzer 9 | . . . 2 . . . 1 . 1 . . . 1 . 2 . . . . . . . . . . 2 . Retrieve Study 9 | . . . 2 . . . 1 . 1 . . . 1 . 2 . . . . . . . . . . 2 . Garrison Access Hacks 16 | . . . . 1 1 . 1 . 1 . 1 . 1 . 1 . 1 . 1 . 1 . . . . 2 4 Unlock Access 9 | . . . . . 1 . 1 . 1 . 1 . 1 . 1 . 1 . 1 . 1 . . . . . . Seal Access 4 | . . . . 1 . . . . . . . . . . . . . . . . . . . . . 1 2 Coupler Status 3 | . . . . . . . . . . . . . . . . . . . . . . . . . . 1 2 Unauthorized Hacks 19 | . . . 1 3 2 . 2 . 2 1 1 . 3 . 2 . 1 . . . . . . . . 1 . Terminals 11 | . . . 1 3 1 . 2 . 1 1 . . 1 . 1 . . . . . . . . . . . . Botnet 7 | . . . 1 2 1 . 1 . . . . . 1 . 1 . . . . . . . . . . . . Disrupt 1 | . . . . . . . . . . 1 . . . . . . . . . . . . . . . . . Operators 2 | . . . . 1 . . 1 . . . . . . . . . . . . . . . . . . . . Search 1 | . . . . . . . . . 1 . . . . . . . . . . . . . . . . . . Fabricators 3 | . . . . . . . . . . . 1 . 1 . . . . . . . . . . . . 1 . Liberate 3 | . . . . . . . . . . . 1 . 1 . . . . . . . . . . . . 1 . Repair Stations 1 | . . . . . . . . . 1 . . . . . . . . . . . . . . . . . . Patch 1 | . . . . . . . . . 1 . . . . . . . . . . . . . . . . . . Recycling Units . | . . . . . . . . . . . . . . . . . . . . . . . . . . . . Scanalyzers . | . . . . . . . . . . . . . . . . . . . . . . . . . . . . Garrison Access 4 | . . . . . 1 . . . . . . . 1 . 1 . 1 . . . . . . . . . . Reprogram 4 | . . . . . 1 . . . . . . . 1 . 1 . 1 . . . . . . . . . . Data Cores Recovered 4 | . . . . 2 . . 1 . . . 1 . . . . . . . . . . . . . . . . Used . | . . . . . . . . . . . . . . . . . . . . . . . . . . . . Hacking Detections 77 | . 5 . 4 7 1 1 9 3 2 1 4 2 7 2 2 1 2 2 1 1 1 1 . . 8 5 5 Full Trace Events 8 | . 1 . 1 . . . . 1 1 . 1 . 2 . . . 1 . . . . . . . . . . Feedback Events . | . . . . . . . . . . . . . . . . . . . . . . . . . . . . Feedback Blocked . | . . . . . . . . . . . . . . . . . . . . . . . . . . . . Robot Schematics Acquired . | . . . . . . . . . . . . . . . . . . . . . . . . . . . . Robots Built . | . . . . . . . . . . . . . . . . . . . . . . . . . . . . Authchips . | . . . . . . . . . . . . . . . . . . . . . . . . . . . . Time . | . . . . . . . . . . . . . . . . . . . . . . . . . . . . Total Robot Build Rating . | . . . . . . . . . . . . . . . . . . . . . . . . . . . . Part Schematics Acquired 5 | . . . . . . . . . . . . . . . . . 1 . . . . . . . . 4 . Parts Built 1 | . . . . . . . . . . . . . 1 . . . . . . . . . . . . . . Authchips . | . . . . . . . . . . . . . . . . . . . . . . . . . . . . Time 76 | . . . . . . . . . . . . . 76 . . . . . . . . . . . . . . Total Part Build Rating 5 | . . . . . . . . . . . . . 5 . . . . . . . . . . . . . . Part Studies Acquired 9 | . . . 2 . . . 1 . 1 . . . 1 . 2 . . . . . . . . . . 2 . Parts Repaired 1 | . . . . 1 . . . . . . . . . . . . . . . . . . . . . . . Time 26 | . . . . 26 . . . . . . . . . . . . . . . . . . . . . . . Parts Recycled . | . . . . . . . . . . . . . . . . . . . . . . . . . . . . Recycled Matter . | . . . . . . . . . . . . . . . . . . . . . . . . . . . . Retrieved Matter . | . . . . . . . . . . . . . . . . . . . . . . . . . . . . Retrieved Components . | . . . . . . . . . . . . . . . . . . . . . . . . . . . . Parts Scanalyzed . | . . . . . . . . . . . . . . . . . . . . . . . . . . . . Part Schematics Acquired . | . . . . . . . . . . . . . . . . . . . . . . . . . . . . Parts Damaged . | . . . . . . . . . . . . . . . . . . . . . . . . . . . . Bothacking | -11 -10 -10 -9 -9 -8 -8 -8 -8 -7 -7 -7 -7 -7 -7 -6 -6 -6 -6 -5 -5 -4 -4 -3 -3 -2 -2 -1 ------------ Run | Yrd Mat Min Mat Sto Mat Gar Mat Gar Fac Gar Fac Gar Fac Gar Fac Gar Fac Gar Fac Gar Fac Gar Res DSF Res Tes Acc Used RIF Installer 11 | . . . . . . 1 . 1 . 1 . 2 . 1 . 2 . 1 . 1 . 1 . . . . . Coupler Efficiency 1 | . . . . . . . . 1 . . . . . . . . . . . . . . . . . . . Hotswap 1 | . . . . . . . . . . . . . . 1 . . . . . . . . . . . . . Code Merge 1 | . . . . . . . . . . 1 . . . . . . . . . . . . . . . . . Threat Obfuscator 1 | . . . . . . . . . . . . 1 . . . . . . . . . . . . . . . Zone Cloak 1 | . . . . . . . . . . . . . . . . 1 . . . . . . . . . . . Robot Detection 1 | . . . . . . . . . . . . 1 . . . . . . . . . . . . . . . Watcher Feeds 1 | . . . . . . 1 . . . . . . . . . . . . . . . . . . . . . Patrol Navigation 1 | . . . . . . . . . . . . . . . . 1 . . . . . . . . . . . Alert ID Control 1 | . . . . . . . . . . . . . . . . . . . . . . 1 . . . . . Structural Interface 1 | . . . . . . . . . . . . . . . . . . 1 . . . . . . . . . Crosswire 1 | . . . . . . . . . . . . . . . . . . . . 1 . . . . . . . Robots Hacked 115 | . . . . . . . 4 . 4 8 2 13 6 16 3 . . 11 . 9 5 6 . 1 3 3 21 Non-combat 23 | . . . . . . . 4 . 1 . 1 . . 1 1 . . . . 1 1 . . . 2 2 9 Combat 92 | . . . . . . . . . 3 8 1 13 6 15 2 . . 11 . 8 4 6 . 1 1 1 12 Robot Hacks Applied 137 | . . . . . . . 7 . 6 8 2 13 8 19 5 . . 11 . 9 10 6 . 1 5 3 24 parse_system 2 | . . . . . . . . . 1 . . . 1 . . . . . . . . . . . . . . generate_echo 1 | . . . . . . . 1 . . . . . . . . . . . . . . . . . . . . deconstruct_machine 1 | . . . . . . . . . . . . . . . . . . . . . . . . . . . 1 map_walls 1 | . . . . . . . 1 . . . . . . . . . . . . . . . . . . . . drop_inventory 4 | . . . . . . . . . . . 1 . . . . . . . . . . . . . . 1 2 purge_threat 17 | . . . . . . . 3 . 2 . . . . 3 2 . . . . . 5 . . . 2 . . locate_traps 1 | . . . . . . . 1 . . . . . . . . . . . . . . . . . . . . block_reporting 1 | . . . . . . . . . . . . . . . . . . . . . . . . . . . 1 map_route 2 | . . . . . . . . . . . . . . . . . . . . . . . . . . . 2 find_garrison 1 | . . . . . . . . . . . . . 1 . . . . . . . . . . . . . . scatter_targeting 1 | . . . . . . . . . . . . . . 1 . . . . . . . . . . . . . spike_heat 2 | . . . . . . . . . . . . . . 2 . . . . . . . . . . . . . amplify_resonance 15 | . . . . . . . . . . . . . 1 2 . . . 1 . 2 . 4 . . . 1 4 wipe_record 1 | . . . . . . . . . . . . . . . . . . . . . . . . . . . 1 reboot_system 2 | . . . . . . . . . . . . 1 1 . . . . . . . . . . . . . . overwrite_iff 30 | . . . . . . . . . . 4 . 8 2 5 . . . 4 . 2 . 1 . . . . 4 streamctrl_low 2 | . . . . . . . . . . . . . . . . . . . . . . . . . . . 2 streamctrl_high 4 | . . . . . . . . . . 3 . . . . . . . . . . . . . . . . 1 formatsys_low 11 | . . . . . . . 1 . 1 . . . . 1 1 . . . . 1 1 . . . 2 1 2 formatsys_high 38 | . . . . . . . . . 2 1 1 4 2 5 2 . . 6 . 4 4 1 . 1 1 . 4 Relay Couplers Released 139 | . . . . . . 11 . 10 . 12 . 19 1 16 . 15 . 22 . 14 . 10 . . . 4 5 Machine Destruction 125 | . . . . . . 11 . 10 . 12 . 15 1 16 . 15 . 19 . 11 . 10 . . . . 5 Programmers 14 | . . . . . . . . . . . . 4 . . . . . 3 . 3 . . . . . 4 . Attached 25 | . . . . . . . 2 . 2 4 . 2 . 6 . 2 . 1 . . 1 1 1 . . 1 2 Crosswired 10 | . . . . . . . . . . . . . . . . . . . . 5 . 4 . . . 1 . Merged Code Value 329 | . . . . . . . . . . 16 . . . 63 . 34 . 68 . 48 . 76 . . . 18 6 Fabnet Peak Effective % . | . . . . . . . . . . . . . . . . . . . . . . . . . . . . Robots Rewired 24 | . . . . . . . . . . 4 . 3 . 2 . 4 . 4 . 3 . 4 . . . . . Allies Hacked 4 | . . . . . . . . . . . . 1 . . 1 . . . . . . 1 . . 1 . . Hacks Repelled . | . . . . . . . . . . . . . . . . . . . . . . . . . . . . Allies | -11 -10 -10 -9 -9 -8 -8 -8 -8 -7 -7 -7 -7 -7 -7 -6 -6 -6 -6 -5 -5 -4 -4 -3 -3 -2 -2 -1 -------- Run | Yrd Mat Min Mat Sto Mat Gar Mat Gar Fac Gar Fac Gar Fac Gar Fac Gar Fac Gar Fac Gar Fac Gar Res DSF Res Tes Acc Total Allies 150 | . . 3 . 10 2 1 2 . 4 12 5 18 5 13 8 6 3 14 . 10 5 8 . 1 3 4 13 Largest Group 26 | . . 3 2 10 3 2 2 1 2 3 8 5 6 5 9 11 14 20 17 20 20 26 23 24 25 3 3 Highest-Rated Group 1292 | . . 40 32 88 32 85 156 14 105 64 128 289 332 154 296 489 576 813 668 796 770 1241 1086 1228 1292 192 438 Highest-Rated Ally 219 | . . 16 16 16 16 85 142 14 79 32 32 95 95 32 41 119 119 119 119 119 56 119 119 142 142 64 219 Total Orders 63 | . . . 4 2 . . 9 1 . 2 . . . 4 1 . . 6 . 8 1 8 . 1 3 3 10 STAY 31 | . . . 2 1 . . 4 1 . 1 . . . 2 1 . . 3 . 4 . 4 . . 1 1 6 FOLLOW 19 | . . . 2 1 . . 3 . . 1 . . . 2 . . . 3 . 2 . 1 . . . 1 3 AID 13 | . . . . . . . 2 . . . . . . . . . . . . 2 1 3 . 1 2 1 1 Ally Attacks 1105 | . . 12 21 103 14 21 4 . 8 66 49 74 79 85 12 . 4 71 . 113 27 129 . . 180 5 28 Total Damage 30763 | . . 125 249 771 103 440 239 . 349 1039 676 1807 2226 1720 404 . 39 2535 . 4276 1003 5223 . . 6322 216 1001 Kills 216 | . . 2 . 16 1 7 1 . 1 5 6 10 19 16 4 . . 24 . 32 6 26 . . 34 . 6 Allies Corrupted 9 | . . . . . . . . . . . . 1 . . . . . . . . . 1 . . 4 2 1 Allies Melted . | . . . . . . . . . . . . . . . . . . . . . . . . . . . . X0-1V1 Amusement Gains 146 | . 4 20 20 5 5 83 3 . . . 6 . . . . . . . . . . . . . . . . Average Entertainment 81 | . 3 20 19 19 17 59 99 100 100 99 95 100 100 100 100 100 100 100 100 100 100 100 100 100 100 70 31 Good Acts 151 | . . 4 1 6 1 7 11 6 4 24 10 13 1 7 8 5 . 11 . 6 . 4 . . 5 12 5 Bad Acts 101 | . 1 5 6 16 3 1 6 3 1 9 . . 5 11 1 3 . 1 . 10 1 7 . . 4 4 3 Intel | -11 -10 -10 -9 -9 -8 -8 -8 -8 -7 -7 -7 -7 -7 -7 -6 -6 -6 -6 -5 -5 -4 -4 -3 -3 -2 -2 -1 ------- Run | Yrd Mat Min Mat Sto Mat Gar Mat Gar Fac Gar Fac Gar Fac Gar Fac Gar Fac Gar Fac Gar Fac Gar Res DSF Res Tes Acc Active Infowar (turns) 3922 | . . . . . . . . . . . . . . . 143 7 . 37 . 9 201 27 18 291 1103 1159 927 Optics 2673 | . . . . . . . . . . . . . . . . . . . . . . . . . 587 1159 927 Machine Analysis 166 | . . . . . . . . . . . . . . . . . . . . . . . . . 166 . . Jamming 2102 | . . . . . . . . . . . . . . . 143 7 . 37 . 9 201 27 18 291 603 766 . Robot Analysis Total 4 | . 2 . 1 . . . 1 . . . . . . . . . . . . . . . . . . . . Derelict Logs Recovered 1 | . . 1 . . . . . . . . . . . . . . . . . . . . . . . . . Drone Launches . | . . . . . . . . . . . . . . . . . . . . . . . . . . . . Drone Recoveries . | . . . . . . . . . . . . . . . . . . . . . . . . . . . . Exploration | -11 -10 -10 -9 -9 -8 -8 -8 -8 -7 -7 -7 -7 -7 -7 -6 -6 -6 -6 -5 -5 -4 -4 -3 -3 -2 -2 -1 ------------- Run | Yrd Mat Min Mat Sto Mat Gar Mat Gar Fac Gar Fac Gar Fac Gar Fac Gar Fac Gar Fac Gar Fac Gar Res DSF Res Tes Acc Turns Passed 26832 | 190 1683 1005 930 1800 437 1773 1669 1189 452 1902 573 1488 1200 1507 593 927 115 1094 78 1143 244 1316 37 291 1110 1159 927 Spaces Moved 14154 | 86 774 507 381 679 179 781 735 644 263 880 309 699 634 889 423 759 106 784 28 736 109 708 17 147 655 654 588 Core 3 | 3 . . . . . . . . . . . . . . . . . . . . . . . . . . . Treads 3057 | 83 774 461 . . . . . . . 425 309 699 306 . . . . . . . . . . . . . . Legs 11094 | . . 46 381 679 179 781 735 644 263 455 . . 328 889 423 759 106 784 28 736 109 708 17 147 655 654 588 Wheels . | . . . . . . . . . . . . . . . . . . . . . . . . . . . . Hover . | . . . . . . . . . . . . . . . . . . . . . . . . . . . . Flight . | . . . . . . . . . . . . . . . . . . . . . . . . . . . . Fastest Speed 50 | 50 160 160 175 175 175 180 113 130 112 112 160 160 118 105 105 105 105 105 105 104 105 105 116 116 116 97 97 Average Speed 134 | 156 160 162 183 175 176 180 163 145 112 135 160 160 140 111 105 105 105 105 105 105 105 108 116 116 116 108 97 Slowest Speed 200 | 160 160 190 190 175 180 185 185 200 123 180 160 160 160 118 105 105 105 105 105 175 105 175 116 116 118 116 97 Overloaded Moves . | . . . . . . . . . . . . . . . . . . . . . . . . . . . . Propulsion Burnouts . | . . . . . . . . . . . . . . . . . . . . . . . . . . . . Robots Hopped . | . . . . . . . . . . . . . . . . . . . . . . . . . . . . Potential Cave-ins 6 | . . . . . . . 4 . . . . . 2 . . . . . . . . . . . . . . Cave-ins Triggered . | . . . . . . . . . . . . . . . . . . . . . . . . . . . . Exploration Rate (%) 54 | 5 73 93 32 95 15 73 74 81 15 93 14 90 17 99 18 94 3 96 5 92 4 94 . 83 21 76 26 Regions Visited 27 Branch Regions 3 Pre-discovered Areas . | . . . . . . . . . . . . . . . . . . . . . . . . . . . . Known Exits Taken 12 | . . . 1 . 1 . 1 . 1 . 1 . 1 . 1 . 1 . 1 . 1 . 1 . 1 . . Unknown Exits Taken 5 | 1 1 1 . 1 . . . . . . . . . . . . . . . . . . . . . 1 . Scrap Searched 1 | . . 1 . . . . . . . . . . . . . . . . . . . . . . . . . Spaces Dug 30 | . . . . 1 1 6 6 . 1 . . . 4 . . . . . . 1 . . . . 2 4 4 Terrain Destroyed 435 | . 5 7 . 6 1 69 45 24 7 51 . 17 12 19 . . . 2 . 18 . 42 . . 2 68 40 Melee 25 | . . . . 1 1 6 6 . 1 . . . 3 . . . . . . . . . . . 2 2 3 Projectile 58 | . . . . . . . . . . . . . 8 8 . . . 2 . 15 . 2 . . . 21 2 AOE 347 | . 5 7 . 5 . 63 39 24 6 51 . 17 . 11 . . . . . . . 40 . . . 45 34 Terrain Rammed . | . . . . . . . . . . . . . . . . . . . . . . . . . . . . Walls Destroyed . | . . . . . . . . . . . . . . . . . . . . . . . . . . . . Machines Disabled . | . . . . . . . . . . . . . . . . . . . . . . . . . . . . Actions | -11 -10 -10 -9 -9 -8 -8 -8 -8 -7 -7 -7 -7 -7 -7 -6 -6 -6 -6 -5 -5 -4 -4 -3 -3 -2 -2 -1 --------- Run | Yrd Mat Min Mat Sto Mat Gar Mat Gar Fac Gar Fac Gar Fac Gar Fac Gar Fac Gar Fac Gar Fac Gar Res DSF Res Tes Acc Total 19940 | 116 1138 675 526 1172 266 996 1026 815 360 1340 384 959 867 1270 561 863 109 1006 76 979 220 1189 34 267 941 932 853 Wait 3095 | 4 286 135 53 348 49 32 104 60 24 140 52 123 135 171 103 29 4 129 49 103 79 322 15 114 178 117 137 Move 14128 | 85 773 506 380 678 178 780 735 643 262 879 309 698 633 888 422 758 105 783 27 735 108 707 16 146 654 653 587 Hop . | . . . . . . . . . . . . . . . . . . . . . . . . . . . . Pick Up 206 | 8 9 9 12 17 7 6 11 9 3 16 5 7 10 9 4 3 . 9 . 7 4 9 1 1 17 8 5 Fast Attach 170 | 5 5 . 1 11 1 12 12 8 6 13 3 6 6 18 3 8 . 5 . 14 1 8 . . 9 13 2 Attach 74 | 1 . 1 4 6 3 6 3 4 5 5 1 3 5 5 2 . . 2 . 2 1 1 2 . 3 4 5 Detach 70 | . 2 1 . 5 1 4 3 2 2 3 1 5 2 7 2 4 . 2 . 3 . 1 . . 9 9 2 Swap 369 | . 9 5 9 16 5 24 28 15 12 30 2 23 18 28 8 5 . 18 . 27 6 24 . . 15 22 20 Drop 261 | . 9 6 11 20 6 9 23 9 5 26 7 8 10 12 4 8 . 13 . 19 1 16 . . 18 19 2 Fire 1134 | 11 42 6 37 58 15 58 72 49 33 180 4 78 39 70 11 27 . 41 . 64 17 36 . 2 32 80 72 Melee 98 | . . . 7 6 1 15 14 . 4 5 . 7 5 9 . . . 2 . 2 . . . . 3 4 14 Ram 1 | . . . . . . . 1 . . . . . . . . . . . . . . . . . . . . Kick 52 | . . 1 6 5 . 1 19 1 3 . . . 3 4 1 . . . . . 1 . . . 1 3 3 Crush 10 | 2 3 5 . . . . . . . . . . . . . . . . . . . . . . . . . Escape Stasis 73 | . . . 4 . . 49 . 11 . . . . . 5 . . . . . . . . . 4 . . . Rewire 147 | . . . . . . . 1 . 1 31 . 1 1 12 1 21 . 2 . 3 2 65 . . 2 . 4 Trap 40 | . . . 2 2 . . . 4 . . . . . 32 . . . . . . . . . . . . . Miscellaneous 12 | . . . . . . . . . . 12 . . . . . . . . . . . . . . . . . Route ------- -11/Scrapyard -10/Materials (discovered 4 exits: *Mat x2 / [*Min] / [*Sub]) -10/Mines (discovered 3 exits: *Mat x2 / [*Exi]) -9/Materials (discovered 3 exits: *Mat / Min / *Sto) -9/Storage (discovered 2 exits: *Mat / [Rec]) -8/Materials -8/Garrison (discovered 4 exits: *Fac x3 / *Mat) -8/Materials (discovered 3 exits: *Fac x2 / Gar) -8/Garrison (discovered 3 exits: *Fac x3) -7/Factory -7/Garrison (discovered 4 exits: *Fac x4) -7/Factory (discovered 2 exits: Low / Gar) -7/Garrison (discovered 4 exits: *Fac x3 / *Fac) -7/Factory -7/Garrison (discovered 3 exits: *Fac x3) -6/Factory (discovered 2 exits: Fac / Gar) -6/Garrison (discovered 3 exits: *Fac x3) -6/Factory -6/Garrison (discovered 3 exits: *Fac x3) -5/Factory -5/Garrison (discovered 3 exits: *Fac x3) -4/Factory -4/Garrison (discovered 3 exits: *Res x3) -3/Research -3/DSF -2/Research (discovered 2 exits: *Tes x2) -2/Testing -1/Access (discovered 2 exits: [*Sur] / Com) To Epsilon Eridani History --------- Turn | Location | Event 43 | -11/Scrapyard | Discovered new exit (range 15) 191 | -11/Scrapyard | Entered Materials 308 | -10/Materials | Build established: Mutant 776 | -10/Materials | Discovered new exit (range 3) 1040 | -10/Materials | Discovered new exit (range 15) 1093 | -10/Materials | Discovered new exit (range 15) 1755 | -10/Materials | Discovered new exit (range 7) 1765 | -10/Materials | Prayed at D.C.S.S. Altar Unit 1874 | -10/Materials | Entered Mines 1878 | -10/Mines | X0-1V1 sent you into danger 1914 | -10/Mines | Assembled infested the area 1921 | -10/Mines | Assisted by bots powering up and referring to "LRC-V3" 1990 | -10/Mines | Discovered new exit (range 12) 2073 | -10/Mines | Learned Materials security intel 2097 | -10/Mines | X0-1V1 caused items to flee you 2099 | -10/Mines | Discovered new exit (range 13) 2175 | -10/Mines | X0-1V1 put everyone to sleep 2278 | -10/Mines | X0-1V1 sent you into danger 2278 | -10/Mines | Items stopped fleeing you 2509 | -10/Mines | Discovered new exit (range 5) 2687 | -10/Mines | Melee accuracy permanently improved by X0-1V1 (+9%; -90 max core) 2729 | -10/Mines | Found a hidden stash of uninstalled traps 2767 | -10/Mines | X0-1V1 vaporized surrounding terrain (radius 23) 2879 | -10/Mines | Entered Materials 2879 | -9/Materials | Accompanied by 2 allies 2879 | -9/Materials | Evolved 2 slots: Propulsion x1, Utility x1 3180 | -9/Materials | Identified exit to Mines 3180 | -9/Materials | Identified exit to Storage 3351 | -9/Materials | X0-1V1 vaporized surrounding terrain (radius 23) 3426 | -9/Materials | Discovered new exit (range 16) 3531 | -9/Materials | Build established: Scavenger-Mutant 3635 | -9/Materials | Destroyed 9 combat bots 3809 | -9/Materials | Entered Storage 4017 | -9/Storage | X0-1V1 vaporized surrounding terrain (radius 22) 4489 | -9/Storage | Assisted by bots powering up and referring to "LRC-V3" 4489 | -9/Storage | Discovered new exit (range 8) 4523 | -9/Storage | Ranged accuracy permanently improved by X0-1V1 (+8%; -80 max core) 4601 | -9/Storage | X0-1V1 caused items to flee you 4763 | -9/Storage | Build established: Commander-Mutant 4823 | -9/Storage | Items stopped fleeing you 5020 | -9/Storage | Discovered new exit (range 5) 5229 | -9/Storage | X0-1V1 announced a LAN party 5231 | -9/Storage | Repaired Aluminum Leg+ 5359 | -9/Storage | Build established: Scavenger-Mutant 5444 | -9/Storage | X0-1V1 vaporized surrounding terrain (radius 15) 5609 | -9/Storage | Entered Materials 5609 | -8/Materials | Accompanied by 3 allies 5609 | -8/Materials | Evolved 2 slots: Utility x1, Weapon x1 5634 | -8/Materials | X0-1V1 added 0b10 threat records associated with you (major) 5726 | -8/Materials | System corruption reached 10% 5913 | -8/Materials | X0-1V1 announced a LAN party 5948 | -8/Materials | Identified exit to Garrison 6002 | -8/Materials | Garrison activated, responded to threat 6046 | -8/Materials | Entered Garrison 6046 | -8/Garrison | Accompanied by 2 allies 6185 | -8/Garrison | Triggered checkpoint 6246 | -8/Garrison | Triggered checkpoint 6262 | -8/Garrison | Garrison Relay disabled 6422 | -8/Garrison | Triggered checkpoint 6422 | -8/Garrison | Triggered checkpoint 6455 | -8/Garrison | Triggered checkpoint 6476 | -8/Garrison | Destroyed 7 combat bots 6512 | -8/Garrison | Triggered checkpoint 6580 | -8/Garrison | Discovered new exit (range 10) 6584 | -8/Garrison | Triggered checkpoint 6614 | -8/Garrison | Discovered new exit (range 6) 6696 | -8/Garrison | X0-1V1 sent hostile H-55 Commando (x3) 6740 | -8/Garrison | Lost 3 parts (1n2u) 6952 | -8/Garrison | Discovered new exit (range 8) 6986 | -8/Garrison | Triggered checkpoint 7016 | -8/Garrison | Build established: Scavenger-Gunner 7052 | -8/Garrison | Garrison Relay disabled 7226 | -8/Garrison | Triggered checkpoint 7340 | -8/Garrison | Installed Relay Interface Framework 7374 | -8/Garrison | Expanded RIF knowledge: Watcher Feeds 7397 | -8/Garrison | X0-1V1 sent allied B-75 Beast (x1) 7398 | -8/Garrison | Discovered new exit (range 11) 7474 | -8/Garrison | Triggered checkpoint 7525 | -8/Garrison | Garrison Relay disabled 7644 | -8/Garrison | Build established: Scavenger-Tank 7793 | -8/Garrison | Core integrity restored by X0-1V1 (+106) 7819 | -8/Garrison | Entered Materials 8243 | -8/Materials | Discovered new exit (range 16) 8375 | -8/Materials | X0-1V1 activates XOMVISION 8711 | -8/Materials | X0-1V1 whisked you away to safety 8784 | -8/Materials | Central database locked down 8892 | -8/Materials | X0-1V1 announced a LAN party 9042 | -8/Materials | Identified exit to Factory 9042 | -8/Materials | X0-1V1 revealed exit location to -7/Factory 9114 | -8/Materials | Build established: Gunner 9171 | -8/Materials | X0-1V1 sent allied H-71 Marshal (x1) 9219 | -8/Materials | Core integrity permanently improved by X0-1V1 (+200) 9420 | -8/Materials | Build established: Tank 9488 | -8/Materials | Identified exit to Garrison 9488 | -8/Materials | Entered Garrison 9488 | -8/Garrison | Accompanied by 1 ally 9513 | -8/Garrison | Expanded RIF knowledge: Coupler Efficiency 9567 | -8/Garrison | X0-1V1 activates XOMVISION 9620 | -8/Garrison | Garrison Relay disabled 9691 | -8/Garrison | X0-1V1 revealed exit location to -7/Factory 9725 | -8/Garrison | Triggered checkpoint 9839 | -8/Garrison | Destroyed 15 combat bots 9904 | -8/Garrison | Discovered exit to Factory (range 14) 9927 | -8/Garrison | Triggered checkpoint 9952 | -8/Garrison | Garrison Relay disabled 10102 | -8/Garrison | Triggered checkpoint 10131 | -8/Garrison | Garrison Relay disabled 10284 | -8/Garrison | Triggered checkpoint 10311 | -8/Garrison | Discovered exit to Factory (range 12) 10328 | -8/Garrison | Triggered checkpoint 10429 | -8/Garrison | Build established: Bothacker-Tank 10677 | -8/Garrison | Entered Factory 10677 | -7/Factory | Evolved 2 slots: Propulsion x1, Utility x1 10688 | -7/Factory | X0-1V1 released a cloud of subatomizers 10702 | -7/Factory | Central database locked down 10761 | -7/Factory | X0-1V1 sent allied Chaos Knight 2.0 (x1) 11065 | -7/Factory | Identified exit to Garrison 11084 | -7/Factory | Garrison activated, responded to threat 11129 | -7/Factory | Entered Garrison 11129 | -7/Garrison | Accompanied by 2 allies 11159 | -7/Garrison | X0-1V1 downgraded hostiles (x1) 11252 | -7/Garrison | Garrison Relay disabled 11291 | -7/Garrison | Triggered checkpoint 11293 | -7/Garrison | Triggered checkpoint 11309 | -7/Garrison | Triggered checkpoint 11319 | -7/Garrison | Triggered checkpoint 11393 | -7/Garrison | Triggered checkpoint 11439 | -7/Garrison | Discovered new exit (range 10) 11493 | -7/Garrison | Triggered checkpoint 11534 | -7/Garrison | Build established: Tank 11635 | -7/Garrison | X0-1V1 activates XOMVISION 11716 | -7/Garrison | Discovered new exit (range 11) 11802 | -7/Garrison | Spotted B-75 Beast 11803 | -7/Garrison | X0-1V1 upgraded hostiles (x1) 11829 | -7/Garrison | Triggered checkpoint 11830 | -7/Garrison | System corruption reached 10% 11835 | -7/Garrison | Spotted B-86 Titan 11868 | -7/Garrison | Lost 3 allies 11944 | -7/Garrison | Lost 3 parts (2n1u) 11954 | -7/Garrison | Destroyed B-86 Titan 12042 | -7/Garrison | Expanded RIF knowledge: Code Merge 12054 | -7/Garrison | Garrison Relay disabled 12251 | -7/Garrison | Triggered checkpoint 12272 | -7/Garrison | Garrison Relay disabled 12355 | -7/Garrison | Build established: Bothacker-Tank 12363 | -7/Garrison | X0-1V1 sent hostile G-47 Trooper (x5) 12426 | -7/Garrison | Lost 4 allies 12499 | -7/Garrison | X0-1V1 destroyed Phase Generator 12499 | -7/Garrison | Phase Generator disabled 12603 | -7/Garrison | Discovered new exit (range 7) 12839 | -7/Garrison | Triggered checkpoint 12859 | -7/Garrison | Discovered new exit (range 6) 13031 | -7/Garrison | Entered Factory 13031 | -7/Factory | Accompanied by 4 allies 13121 | -7/Factory | X0-1V1 sent you to a vault 13123 | -7/Factory | X0-1V1 activates XOMVISION 13143 | -7/Factory | X0-1V1 put everyone to sleep 13452 | -7/Factory | Lost 7 allies 13467 | -7/Factory | Identified exit to Lower Caves 13467 | -7/Factory | X0-1V1 revealed exit location to -7/Lower Caves 13596 | -7/Factory | X0-1V1 foreshadows a heat wave 13604 | -7/Factory | Identified exit to Garrison 13604 | -7/Factory | Entered Garrison 13604 | -7/Garrison | Accompanied by 1 ally 13738 | -7/Garrison | Triggered checkpoint 13778 | -7/Garrison | Garrison Relay disabled 13844 | -7/Garrison | Triggered checkpoint 13854 | -7/Garrison | Triggered checkpoint 14030 | -7/Garrison | X0-1V1 activates XOMVISION 14038 | -7/Garrison | Expanded RIF knowledge: Robot Detection 14081 | -7/Garrison | Discovered new exit (range 10) 14110 | -7/Garrison | Triggered checkpoint 14198 | -7/Garrison | Lost 3 allies 14199 | -7/Garrison | Discovered new exit (range 6) 14296 | -7/Garrison | Triggered checkpoint 14358 | -7/Garrison | Discovered new exit (range 12) 14418 | -7/Garrison | Expanded RIF knowledge: Threat Obfuscation 14446 | -7/Garrison | Triggered checkpoint 14467 | -7/Garrison | Garrison Relay disabled 14482 | -7/Garrison | Garrison Relay disabled 14668 | -7/Garrison | Triggered checkpoint 14757 | -7/Garrison | X0-1V1 downgraded hostiles (x1) 14773 | -7/Garrison | Garrison Relay disabled 14806 | -7/Garrison | Found embedded Infiltrators 14829 | -7/Garrison | Triggered checkpoint 14846 | -7/Garrison | Identified exit to Factory 14846 | -7/Garrison | X0-1V1 revealed exit location to -6/Factory 14899 | -7/Garrison | X0-1V1 activates XOMVISION 14900 | -7/Garrison | Rescued a captive Derelict 14906 | -7/Garrison | Spotted B-75 Beast 14907 | -7/Garrison | Weapon slot count temporarily expanded by X0-1V1 (+2) 14916 | -7/Garrison | Destroyed B-75 Beast 15092 | -7/Garrison | Entered Factory 15092 | -7/Factory | Accompanied by 6 allies 15112 | -7/Factory | Build established: Botlord-Tank 15471 | -7/Factory | Weapon slot count reverted to normal (-2) 15569 | -7/Factory | Fabricated F-cell Engine (x1) 15606 | -7/Factory | X0-1V1 enhanced Transport squad support 15820 | -7/Factory | X0-1V1 added 0b10 threat records associated with you (major) 15924 | -7/Factory | Lost 3 allies 16169 | -7/Factory | Build established: Bothacker-Tank 16284 | -7/Factory | Identified exit to Garrison 16288 | -7/Factory | Garrison activated, responded to threat 16292 | -7/Factory | Entered Garrison 16292 | -7/Garrison | Accompanied by 1 ally 16306 | -7/Garrison | Triggered checkpoint 16383 | -7/Garrison | Garrison Relay disabled 16469 | -7/Garrison | X0-1V1 destroyed Phase Generator 16469 | -7/Garrison | Phase Generator disabled 16573 | -7/Garrison | Triggered checkpoint 16584 | -7/Garrison | Triggered checkpoint 16617 | -7/Garrison | Lost 3 allies 16710 | -7/Garrison | Triggered checkpoint 16722 | -7/Garrison | Expanded RIF knowledge: Hotswap 16733 | -7/Garrison | X0-1V1 caused items to flee you 16787 | -7/Garrison | Garrison Relay disabled 16871 | -7/Garrison | Items stopped fleeing you 16928 | -7/Garrison | X0-1V1 vaporized surrounding terrain (radius 20) 16935 | -7/Garrison | Discovered exit to Factory (range 16) 16963 | -7/Garrison | H-XX Assembler disabled 17009 | -7/Garrison | System corruption reached 30% 17069 | -7/Garrison | Triggered checkpoint 17172 | -7/Garrison | Triggered checkpoint 17191 | -7/Garrison | Discovered exit to Factory (range 9) 17356 | -7/Garrison | X0-1V1 revealed exit location to -6/Factory 17634 | -7/Garrison | Triggered checkpoint 17694 | -7/Garrison | Garrison Relay disabled 17716 | -7/Garrison | Garrison Relay disabled 17765 | -7/Garrison | Build established: Botlord-Tank 17799 | -7/Garrison | Entered Factory 17799 | -6/Factory | Accompanied by 4 allies 17799 | -6/Factory | Evolved 2 slots: Propulsion x1, Utility x1 18134 | -6/Factory | Identified exit to Factory 18134 | -6/Factory | X0-1V1 revealed exit location to -5/Factory 18136 | -6/Factory | X0-1V1 activates XOMVISION 18174 | -6/Factory | X0-1V1 sent you to a vault 18259 | -6/Factory | X0-1V1 put everyone to sleep 18302 | -6/Factory | Identified exit to Garrison 18392 | -6/Factory | Entered Garrison 18392 | -6/Garrison | Discovered recently destroyed garrison 18392 | -6/Garrison | Accompanied by 5 allies 18413 | -6/Garrison | Expanded RIF knowledge: Zone Cloak 18449 | -6/Garrison | Rewired Executioner 18494 | -6/Garrison | Garrison Relay disabled 18633 | -6/Garrison | Garrison Relay disabled 18655 | -6/Garrison | Discovered new exit (range 14) 18676 | -6/Garrison | Found embedded Infiltrators 18698 | -6/Garrison | Garrison Relay disabled 18926 | -6/Garrison | Discovered new exit (range 10) 19001 | -6/Garrison | X0-1V1 activates XOMVISION 19101 | -6/Garrison | Garrison Relay disabled 19123 | -6/Garrison | Discovered new exit (range 14) 19165 | -6/Garrison | Expanded RIF knowledge: Patrol Navigation 19319 | -6/Garrison | Entered Factory 19319 | -6/Factory | Accompanied by 11 allies 19328 | -6/Factory | Identified exit to Garrison 19434 | -6/Factory | Entered Garrison 19434 | -6/Garrison | Accompanied by 13 allies 19452 | -6/Garrison | Triggered checkpoint 19558 | -6/Garrison | Phase Generator disabled 19578 | -6/Garrison | Triggered checkpoint 19648 | -6/Garrison | Lost 10 allies 19653 | -6/Garrison | X0-1V1 revealed exit location to -5/Factory 19718 | -6/Garrison | X0-1V1 revealed exit location to -5/Factory 19739 | -6/Garrison | Triggered checkpoint 19804 | -6/Garrison | Triggered checkpoint 19888 | -6/Garrison | Garrison Relay disabled 19894 | -6/Garrison | X0-1V1 activates XOMVISION 20040 | -6/Garrison | Triggered checkpoint 20080 | -6/Garrison | Discovered exit to Factory (range 10) 20092 | -6/Garrison | Triggered checkpoint 20103 | -6/Garrison | Garrison Relay disabled 20129 | -6/Garrison | Garrison Relay disabled 20252 | -6/Garrison | Triggered checkpoint 20257 | -6/Garrison | Expanded RIF knowledge: Structural Interface 20283 | -6/Garrison | Garrison Relay disabled 20369 | -6/Garrison | Garrison Relay disabled 20528 | -6/Garrison | Entered Factory 20528 | -5/Factory | Accompanied by 17 allies 20528 | -5/Factory | Evolved 2 slots: Power x1, Propulsion x1 20556 | -5/Factory | Identified exit to Garrison 20606 | -5/Factory | Entered Garrison 20606 | -5/Garrison | Accompanied by 17 allies 20624 | -5/Garrison | Triggered checkpoint 20660 | -5/Garrison | Garrison Relay disabled 20722 | -5/Garrison | X0-1V1 destroyed Phase Generator 20722 | -5/Garrison | Phase Generator disabled 20723 | -5/Garrison | X0-1V1 mutated your Propulsion slot to Weapon slot 20812 | -5/Garrison | X0-1V1 rewrote Slayer 5f IFF filter 20842 | -5/Garrison | Spotted B-75 Beast 20858 | -5/Garrison | Allies destroyed B-75 Beast 20866 | -5/Garrison | Triggered checkpoint 20868 | -5/Garrison | Triggered checkpoint 20871 | -5/Garrison | P-70 Sage assimilated allied 6K-CM9(l) 20879 | -5/Garrison | System corruption reached 10% 20898 | -5/Garrison | Triggered checkpoint 20955 | -5/Garrison | Expanded RIF knowledge: Crosswire 21002 | -5/Garrison | Discovered new exit (range 12) 21114 | -5/Garrison | Triggered checkpoint 21169 | -5/Garrison | Garrison Relay disabled 21296 | -5/Garrison | X0-1V1 vaporized surrounding terrain (radius 19) 21304 | -5/Garrison | X0-1V1 caused items to flee you 21404 | -5/Garrison | Triggered checkpoint 21436 | -5/Garrison | Triggered checkpoint 21456 | -5/Garrison | Identified exit to Factory 21456 | -5/Garrison | X0-1V1 revealed exit location to -4/Factory 21477 | -5/Garrison | Items stopped fleeing you 21500 | -5/Garrison | Found Prototype Device 21500 | -5/Garrison | Identified Adv. Kinecellerator 21510 | -5/Garrison | Garrison Relay disabled 21529 | -5/Garrison | Discovered exit to Factory (range 9) 21749 | -5/Garrison | Entered Factory 21749 | -4/Factory | Accompanied by 15 allies 21749 | -4/Factory | Evolved 2 slots: Propulsion x1, Utility x1 21795 | -4/Factory | Build established: Botlord-Gunner 21901 | -4/Factory | Identified exit to Garrison 21993 | -4/Factory | Entered Garrison 21993 | -4/Garrison | Accompanied by 20 allies 22015 | -4/Garrison | Spotted Striker 22015 | -4/Garrison | Spotted Striker 22027 | -4/Garrison | Destroyed Striker 22043 | -4/Garrison | Allies destroyed Striker 22068 | -4/Garrison | Rewired Executioner 22082 | -4/Garrison | Rewired Executioner 22111 | -4/Garrison | Build established: Commander-Tank 22136 | -4/Garrison | Triggered checkpoint 22192 | -4/Garrison | Expanded RIF knowledge: Alert ID Control 22196 | -4/Garrison | X0-1V1 caused items to flee you 22365 | -4/Garrison | Items stopped fleeing you 22386 | -4/Garrison | Triggered checkpoint 22423 | -4/Garrison | Found embedded Infiltrators 22438 | -4/Garrison | X0-1V1 destroyed Phase Generator 22438 | -4/Garrison | Phase Generator disabled 22451 | -4/Garrison | Triggered checkpoint 22559 | -4/Garrison | X0-1V1 activates XOMVISION 22613 | -4/Garrison | Garrison Relay disabled 22640 | -4/Garrison | Discovered new exit (range 9) 22691 | -4/Garrison | Triggered checkpoint 22733 | -4/Garrison | Triggered checkpoint 22779 | -4/Garrison | Triggered checkpoint 22839 | -4/Garrison | Triggered checkpoint 22849 | -4/Garrison | Garrison Relay disabled 22882 | -4/Garrison | Discovered new exit (range 13) 22941 | -4/Garrison | Spotted B-86 Titan 22956 | -4/Garrison | Allies destroyed B-86 Titan 23115 | -4/Garrison | Triggered checkpoint 23166 | -4/Garrison | Garrison Relay disabled 23209 | -4/Garrison | Identified exit to Research 23209 | -4/Garrison | X0-1V1 revealed exit location to -3/Research 23213 | -4/Garrison | Triggered checkpoint 23309 | -4/Garrison | Entered Research 23309 | -3/Research | Accompanied by 23 allies 23309 | -3/Research | Evolved 2 slots: Utility x2 23329 | -3/Research | Identified exit to DSF 23346 | -3/Research | Entered DSF 23346 | -3/DSF | Accompanied by 23 allies 23445 | -3/DSF | Discovered new exit (range 15) 23637 | -3/DSF | Entered Research 23637 | -2/Research | Accompanied by 24 allies 23637 | -2/Research | Evolved 2 slots: Propulsion x1, Utility x1 23890 | -2/Research | X0-1V1 enhanced Transport squad support 23994 | -2/Research | Found Prototype Processor 23994 | -2/Research | Identified Exp. Melee Analysis Suite 24066 | -2/Research | Lost 9 allies 24154 | -2/Research | Found Prototype Processor 24154 | -2/Research | Identified Exp. Targeting Computer 24179 | -2/Research | Lost 6 allies 24213 | -2/Research | Identified exit to Testing 24231 | -2/Research | X0-1V1 activates XOMVISION 24233 | -2/Research | X0-1V1 vaporized surrounding terrain (radius 19) 24273 | -2/Research | Build established: Botlord-Tank 24311 | -2/Research | Lost 6 allies 24501 | -2/Research | X0-1V1 whisked you away to safety 24676 | -2/Research | X0-1V1 put everyone to sleep 24747 | -2/Research | Entered Testing 25153 | -2/Testing | P-80 Master assimilated allied Smith 9a 25219 | -2/Testing | Found Prototype Ballistic Gun 25219 | -2/Testing | Identified Hyp. Multirail 25251 | -2/Testing | X0-1V1 sent you to a vault 25270 | -2/Testing | Protovariant out of control (PL-N2EDPB5YU9) 25270 | -2/Testing | Unleashed a protovariant (PL-N2EDPB5YU9) 25333 | -2/Testing | Lost 3 allies 25337 | -2/Testing | Watched by a mysterious "MATRIX" hacker 25337 | -2/Testing | Central database locked down 25363 | -2/Testing | Found Prototype Ballistic Cannon 25363 | -2/Testing | Identified Perforator 25502 | -2/Testing | X0-1V1 enhanced Transport squad support 25534 | -2/Testing | System corruption reached 10% 25579 | -2/Testing | X0-1V1 activates XOMVISION 25605 | -2/Testing | X0-1V1 sent hostile Guerrilla (x1) 25655 | -2/Testing | Found Prototype Protection 25655 | -2/Testing | Identified Hvy. Regenerative Plating 25659 | -2/Testing | X0-1V1 sent you into danger 25725 | -2/Testing | Found Prototype Protection 25766 | -2/Testing | Discovered new exit (range 30) 25883 | -2/Testing | Weapon slot count temporarily expanded by X0-1V1 (+3) 25906 | -2/Testing | Temporary slots became permanent: Weapon x2 25906 | -2/Testing | Entered Access 25915 | -1/Access | Identified SHELL Armor 25964 | -1/Access | X0-1V1 whisked you away to safety 26310 | -1/Access | Weapon slot count reverted to normal (-1) 26413 | -1/Access | Identified exit to Command 26732 | -1/Access | Discovered new exit (range 5) 26765 | -1/Access | Spotted B-99 Colossus 26767 | -1/Access | Assimilated Colossus 10a with formatsys_high 26768 | -1/Access | X0-1V1 destroyed Energy Cycler 26768 | -1/Access | Energy Cycler disabled 26769 | -1/Access | Spotted B-99 Colossus 26770 | -1/Access | Assimilated Colossus 10b with formatsys_high 26833 | *** | Escaped! Last Messages --------------- 26815_ Slug penetrates P-80 Master. 26815_ Slug penetrates Sealed Barrier. 26815_ Slug penetrates P-80 Master. 26818_ K-01 Serf collects debris. 26818_ P-80 Master Imp. Antigrav System blasted off. 26818_ P-80 Master destroyed. 26818_ Slug penetrates Sealed Barrier. 26818_ K-01 Serf destroyed. 26818_ Slug penetrates Sealed Barrier. 26818_ Slug penetrates P-80 Master. 26822_ K-01 Serf collects debris. 26824_ Slug penetrates Sealed Barrier. 26824_ Slug penetrates P-80 Master. 26824_ Slug penetrates Sealed Barrier. 26824_ P-80 Master destroyed. 26824_ Slug penetrates Wall. 26824_ Acquired 24 matter. 26830_ Colossus 10b exits siege mode. 26830_ K-01 Serf collects debris. Map ----- +----------------------------------------------------+ | ??????????????????????# ############# % ##### | | ??????????????????????+ | | ??????????????????????# = * | | ??????????????????????############## [%!######### | | ??????????????????????????????????# # [########## | | ??????????????????????????????????# # !# | | ??????????????????????????????????## #!%#! | | ???????????????????????????????????# # +% | | ???????????????????????????????????### # | | ????????????????????????????????????## =# | | ????????+############################# # | | ??????? =[!%!!* *%! # | | ??????? !%[=!%|% = = ########## | | ????????????????##### =!*!!!=""#####+##########??? | | ????????????????????# =!|%!%""#?# #??? | | ????????????????????# !!|""#?# %* #??? | | ????????????????????# % T#?# = #??? | | ????????????????????# =%""#?# #??? | | ????????????????????# k ""#?# " #??? | | ???????????????????## ""###""" #??? | | ???????????????????#%"""%"%" "" ## """ #??? | | ????????????????????#! = #?# " #??? | | ????????????????????#*= #?# [#??? | | ????????????????????# #?# #??? | | ????????????????????# #?#! #??? | | ????????????????????# @" #?# #??? | | ????????????????????# "" #?##########/###??? | | ????????????????????# BBBB #??????????# #????? | | ????????????????????# BBBB #??????????# #????? | | ????????????????????# #??????????# #????? | | ????????????????????#"" " """#??????????# #????? | | ??????????????????????" " "?????????????+ ???? | | ??????????????????????" " "?????????????# ###??? | | ????????????????????#""""k """#??????????# #????? | | ????????????????????# % #??????????# #????? | | ????????????????????#% #??????????# #????? | | ????????????????????# #??????????# #????? | | ????????????????????# #??????????#/#????? | | ????????????????????# #?????????? ????? | | ????????????????????# #?????????? ????? | | ????????????????????# #?????????? ????? | | ????????????????????#### ####?????????? ????? | | ???????????????????????# #????????????? ????? | | ???????????????????????# #????????????? ????? | | ??????????????????????? #????????????? ????? | | ???????????????????????# #????????????? ????? | | ???????????????????????# #?????????????" ????? | | ???????????????????????# #??????????????" ????? | | ???????????????????????# #????????????????????? | | ???????????????????????# #????????????????????? | +----------------------------------------------------+ Best States ------------- Heat Dissipation 174 Energy Generation 46 Energy Capacity 2250 Matter Stores 1000 Matter Capacity 1000 Sight Range 23 Terrain Scan Density 10 Jamming Range 16 Armor Coverage 900 Resistance: KI 30 Resistance: TH 15 Propulsion Shielding 66 Evasion (%) 55 Targeting Accuracy 12 Target Analysis 8 Recoil Reduction 4 Particle Charging 15 Kinecelleration 50 Defensive Hacking 12 Relay Coupler Types 7 Relay Coupler Value 254 Item Schematics ----------------- Adv. KE Penetrator | -6/Factory | Hacked Electron Diverter | -2/Testing | Archive Cld. Nuclear Pulse Thruster | -2/Testing | Archive Prc. Matter Filter | -2/Testing | Archive Enh. Multireflex Exoskeleton | -2/Testing | Archive Robot Schematics ------------------ None Fabricated ------------ F-cell Engine | x1 | -7/Factory | Preloaded Repaired ---------- Aluminum Leg | 8% | -9/Storage Studied --------- Aluminum Leg | -9/Materials | Hacked Beam Rifle | -9/Materials | Hacked Carbon-fiber Leg | -8/Materials | Hacked Titanium Leg | -7/Factory | Hacked Flexi-carbon Leg | -7/Factory | Hacked KE Penetrator | -6/Factory | Hacked Coil Gun | -6/Factory | Hacked Biometal Leg | -2/Testing | Hacked Centrium Leg | -2/Testing | Hacked Alien Tech Used ----------------- None Achievements -------------- None Challenges ------------ None Game ------ Seed SmartCoolingAnalyzer Manual? 0 Play Time 03:34:17 Cumulative 2320.8 hours Start 2026.09.05 @ 17:03:57 End 2026.09.05 @ 21:06:45 Sessions 3 Manual Loads 0 Difficulty Rogue Special Mode None Game No. 1441 Rogue 1437 Adventurer 4 Explorer 0 Win Type 0 Total 337 Types 252/15/27/11/4/1/6/10/7/4 Lore% 99 Gallery% 96 Achievement% 95 Wizard Run 0 Options --------- Layout 2 ASCII 0 Keyboard 1 Movement Vi Keybinds 0 Fullscreen 0 Font 24/Terminus Map View 59x48 Zoom Use 0% Tactical HUD 1 Map Filters NONE Filters NONE Steam 1 RUN: 4e284858-9e3a-4dca-8342-b44a9c7f3881